Workbook

Sheet 은평구총괄
B1: 은평구 등록장애인 현황 (2022. 8월 말 기준)
B3: 서울특별시 은평구 | J3: (단위 : 명)
B5: 자치구 | C5: 장애유형 | D5: 합계 | G5: 심한 장애 | J5: 심하지 않은 장애
D6: 계 | E6: 남 | F6: 여 | G6: 계 | H6: 남 | I6: 여 | J6: 계 | K6: 남 | L6: 여
B7: 은평구 | C7: 합 계 | D7: =SUM(D8:D22) -> 21753 | E7: =SUM(E8:E22) -> 12687 | F7: 9066 | G7: 8259 | H7: 5137 | I7: 3122 | J7: 13494 | K7: 7550 | L7: 5944
C8: 지체 | D8: 8837 | E8: 4842 | F8: 3995 | G8: 1443 | H8: 936 | I8: 507 | J8: 7394 | K8: 3906 | L8: 3488
C9: 시각 | D9: 2274 | E9: 1364 | F9: 910 | G9: 425 | H9: 233 | I9: 192 | J9: 1849 | K9: 1131 | L9: 718
C10: 청각 | D10: 3350 | E10: 1853 | F10: 1497 | G10: 701 | H10: 353 | I10: 348 | J10: 2649 | K10: 1500 | L10: 1149
C11: 언어 | D11: 181 | E11: 134 | F11: 47 | G11: 92 | H11: 69 | I11: 23 | J11: 89 | K11: 65 | L11: 24
C12: 지적 | D12: 1828 | E12: 1200 | F12: 628 | G12: 1828 | H12: 1200 | I12: 628 | J12: 0 | K12: 0 | L12: 0
C13: 뇌병변 | D13: 2218 | E13: 1318 | F13: 900 | G13: 1304 | H13: 735 | I13: 569 | J13: 914 | K13: 583 | L13: 331
C14: 자폐성 | D14: 396 | E14: 333 | F14: 63 | G14: 396 | H14: 333 | I14: 63 | J14: 0 | K14: 0 | L14: 0
C15: 정신 | D15: 1148 | E15: 705 | F15: 443 | G15: 1142 | H15: 699 | I15: 443 | J15: 6 | K15: 6 | L15: 0
C16: 신장 | D16: 894 | E16: 542 | F16: 352 | G16: 709 | H16: 442 | I16: 267 | J16: 185 | K16: 100 | L16: 85
C17: 심장 | D17: 55 | E17: 24 | F17: 31 | G17: 45 | H17: 17 | I17: 28 | J17: 10 | K17: 7 | L17: 3
C18: 호흡기 | D18: 120 | E18: 86 | F18: 34 | G18: 115 | H18: 84 | I18: 31 | J18: 5 | K18: 2 | L18: 3
C19: 간 | D19: 168 | E19: 113 | F19: 55 | G19: 12 | H19: 8 | I19: 4 | J19: 156 | K19: 105 | L19: 51
C20: 안면 | D20: 22 | E20: 11 | F20: 11 | G20: 10 | H20: 6 | I20: 4 | J20: 12 | K20: 5 | L20: 7
C21: 장루.요루 | D21: 194 | E21: 126 | F21: 68 | G21: 26 | H21: 15 | I21: 11 | J21: 168 | K21: 111 | L21: 57
C22: 뇌전증 | D22: 68 | E22: 36 | F22: 32 | G22: 11 | H22: 7 | I22: 4 | J22: 57 | K22: 29 | L22: 28

Sheet 유형별
A1: 은평구 동별 장애인현황(유형별) (2022. 8월말)
A2: 동별 | B2: 합계 | F2: 지체 | I2: 시각 | L2: 청각 | O2: 언어 | S2: 지적 | W2: 뇌병변 | Z2: 자폐 | AC2: 정신 | AF2: 신장 | AI2: 심장 | AM2: 호흡기 | AP2: 간 | AS2: 안면 | AV2: 장루.요루 | AY2: 뇌전증
B3: 합계 | C3: 남성 | D3: 여성 | F3: 소계 | G3: 남성 | H3: 여성 | I3: 소계 | J3: 남성 | K3: 여성 | L3: 소계 | M3: 남성 | N3: 여성 | O3: 소계 | Q3: 남성 | R3: 여성 | S3: 소계 | T3: 남성 | V3: 여성 | W3: 소계 | X3: 남성 | Y3: 여성 | Z3: 소계 | AA3: 남성 | AB3: 여성 | AC3: 소계 | AD3: 남성 | AE3: 여성 | AF3: 소계 | AG3: 남성 | AH3: 여성 | AI3: 소계 | AJ3: 남성 | AL3: 여성 | AM3: 소계 | AN3: 남성 | AO3: 여성 | AP3: 소계 | AQ3: 남성 | AR3: 여성 | AS3: 소계 | AT3: 남성 | AU3: 여성 | AV3: 소계 | AW3: 남성 | AX3: 여성 | AY3: 소계 | AZ3: 남성 | BA3: 여성
A4: 합 계 | B4: =SUM(B5:B20) -> 21753 | C4: =SUM(C5:C20) -> 12687 | D4: =SUM(D5:E20) -> 9066 | F4: =SUM(F5:F20) -> 8837 | G4: 4842 | H4: 3995 | I4: 2274 | J4: 1364 | K4: 910 | L4: 3350 | M4: 1853 | N4: 1497 | O4: =SUM(O5:P20) -> 181 | Q4: =SUM(Q5:Q20) -> 134 | R4: =SUM(R5:R20) -> 47 | S4: =SUM(S5:S20) -> 1828 | T4: =SUM(T5:U20) -> 1200 | V4: =SUM(V5:V20) -> 628 | W4: 2218 | X4: 1318 | Y4: 900 | Z4: 396 | AA4: 333 | AB4: 63 | AC4: 1148 | AD4: 705 | AE4: 443 | AF4: 894 | AG4: 542 | AH4: 352 | AI4: 55 | AJ4: =SUM(AJ5:AK20) -> 24 | AL4: =SUM(AL5:AL20) -> 31 | AM4: 120 | AN4: 86 | AO4: 34 | AP4: 168 | AQ4: 113 | AR4: 55 | AS4: 22 | AT4: 11 | AU4: 11 | AV4: 194 | AW4: 126 | AX4: 68 | AY4: 68 | AZ4: 36 | BA4: 32
A5: 녹번동 | B5: =SUM(F5,I5,L5,O5,S5,W5,Z5,AC5,AF5,AI5,AM5,AP5,AS5,AV5,AY5) -> 1667 | C5: =SUM(G5,J5,M5,Q5,T5,X5,AA5,AD5,AG5,AJ5,AN5,AQ5,AT5,AW5,AZ5) -> 950 | D5: =SUM(H5,K5,N5,R5,V5,Y5,AB5,AE5,AH5,AL5,AO5,AR5,AU5,AX5,BA5) -> 717 | F5: 708 | G5: 388 | H5: 320 | I5: 183 | J5: 121 | K5: 62 | L5: 291 | M5: 152 | N5: 139 | O5: 20 | Q5: 16 | R5: 4 | S5: 112 | T5: 72 | V5: 40 | W5: 160 | X5: 81 | Y5: 79 | Z5: 18 | AA5: 13 | AB5: 5 | AC5: 67 | AD5: 36 | AE5: 31 | AF5: 70 | AG5: 46 | AH5: 24 | AI5: 2 | AJ5: 0 | AL5: 2 | AM5: 5 | AN5: 3 | AO5: 2 | AP5: 12 | AQ5: 9 | AR5: 3 | AS5: 3 | AT5: 3 | AU5: 0 | AV5: 15 | AW5: 9 | AX5: 6 | AY5: 1 | AZ5: 1 | BA5: 0
A6: 불광1동 | B6: =SUM(F6,I6,L6,O6,S6,W6,Z6,AC6,AF6,AI6,AM6,AP6,AS6,AV6,AY6) -> 1700 | C6: =SUM(G6,J6,M6,Q6,T6,X6,AA6,AD6,AG6,AJ6,AN6,AQ6,AT6,AW6,AZ6) -> 948 | D6: =SUM(H6,K6,N6,R6,V6,Y6,AB6,AE6,AH6,AL6,AO6,AR6,AU6,AX6,BA6) -> 752 | F6: 698 | G6: 374 | H6: 324 | I6: 191 | J6: 117 | K6: 74 | L6: 280 | M6: 152 | N6: 128 | O6: 14 | Q6: 10 | R6: 4 | S6: 104 | T6: 59 | V6: 45 | W6: 174 | X6: 96 | Y6: 78 | Z6: 27 | AA6: 23 | AB6: 4 | AC6: 72 | AD6: 34 | AE6: 38 | AF6: 90 | AG6: 54 | AH6: 36 | AI6: 4 | AJ6: 2 | AL6: 2 | AM6: 7 | AN6: 7 | AO6: 0 | AP6: 21 | AQ6: 10 | AR6: 11 | AS6: 1 | AT6: 1 | AU6: 0 | AV6: 13 | AW6: 7 | AX6: 6 | AY6: 4 | AZ6: 2 | BA6: 2
A7: 불광2동 | B7: 1419 | C7: 832 | D7: 587 | F7: 556 | G7: 315 | H7: 241 | I7: 162 | J7: 99 | K7: 63 | L7: 255 | M7: 153 | N7: 102 | O7: 11 | Q7: 9 | R7: 2 | S7: 100 | T7: 61 | V7: 39 | W7: 133 | X7: 81 | Y7: 52 | Z7: 21 | AA7: 21 | AB7: 0 | AC7: 65 | AD7: 29 | AE7: 36 | AF7: 67 | AG7: 41 | AH7: 26 | AI7: 5 | AJ7: 3 | AL7: 2 | AM7: 4 | AN7: 3 | AO7: 1 | AP7: 9 | AQ7: 4 | AR7: 5 | AS7: 2 | AT7: 1 | AU7: 1 | AV7: 18 | AW7: 7 | AX7: 11 | AY7: 11 | AZ7: 5 | BA7: 6
A8: 갈현1동 | B8: 1025 | C8: 604 | D8: 421 | F8: 410 | G8: 228 | H8: 182 | I8: 126 | J8: 78 | K8: 48 | L8: 156 | M8: 88 | N8: 68 | O8: 5 | Q8: 3 | R8: 2 | S8: 76 | T8: 50 | V8: 26 | W8: 98 | X8: 62 | Y8: 36 | Z8: 19 | AA8: 16 | AB8: 3 | AC8: 64 | AD8: 35 | AE8: 29 | AF8: 45 | AG8: 23 | AH8: 22 | AI8: 1 | AJ8: 1 | AL8: 0 | AM8: 6 | AN8: 4 | AO8: 2 | AP8: 9 | AQ8: 8 | AR8: 1 | AS8: 0 | AT8: 0 | AU8: 0 | AV8: 8 | AW8: 7 | AX8: 1 | AY8: 2 | AZ8: 1 | BA8: 1
A9: 갈현2동 | B9: 1223 | C9: 706 | D9: 517 | F9: 520 | G9: 287 | H9: 233 | I9: 124 | J9: 81 | K9: 43 | L9: 185 | M9: 110 | N9: 75 | O9: 18 | Q9: 14 | R9: 4 | S9: 103 | T9: 62 | V9: 41 | W9: 106 | X9: 57 | Y9: 49 | Z9: 16 | AA9: 12 | AB9: 4 | AC9: 60 | AD9: 23 | AE9: 37 | AF9: 62 | AG9: 38 | AH9: 24 | AI9: 6 | AJ9: 2 | AL9: 4 | AM9: 6 | AN9: 6 | AO9: 0 | AP9: 9 | AQ9: 7 | AR9: 2 | AS9: 0 | AT9: 0 | AU9: 0 | AV9: 6 | AW9: 6 | AX9: 0 | AY9: 2 | AZ9: 1 | BA9: 1
A10: 구산동 | B10: 2182 | C10: 1498 | D10: 684 | F10: 655 | G10: 368 | H10: 287 | I10: 153 | J10: 97 | K10: 56 | L10: 231 | M10: 131 | N10: 100 | O10: 17 | Q10: 11 | R10: 6 | S10: 402 | T10: 315 | V10: 87 | W10: 227 | X10: 163 | Y10: 64 | Z10: 42 | AA10: 34 | AB10: 8 | AC10: 326 | AD10: 286 | AE10: 40 | AF10: 52 | AG10: 34 | AH10: 18 | AI10: 3 | AJ10: 2 | AL10: 1 | AM10: 29 | AN10: 21 | AO10: 8 | AP10: 13 | AQ10: 12 | AR10: 1 | AS10: 3 | AT10: 1 | AU10: 2 | AV10: 22 | AW10: 18 | AX10: 4 | AY10: 7 | AZ10: 5 | BA10: 2
A11: 대조동 | B11: 1240 | C11: 714 | D11: 526 | F11: 522 | G11: 290 | H11: 232 | I11: 147 | J11: 82 | K11: 65 | L11: 222 | M11: 131 | N11: 91 | O11: 7 | Q11: 5 | R11: 2 | S11: 66 | T11: 46 | V11: 20 | W11: 117 | X11: 69 | Y11: 48 | Z11: 12 | AA11: 9 | AB11: 3 | AC11: 62 | AD11: 31 | AE11: 31 | AF11: 57 | AG11: 34 | AH11: 23 | AI11: 6 | AJ11: 2 | AL11: 4 | AM11: 5 | AN11: 4 | AO11: 1 | AP11: 5 | AQ11: 4 | AR11: 1 | AS11: 0 | AT11: 0 | AU11: 0 | AV11: 9 | AW11: 6 | AX11: 3 | AY11: 3 | AZ11: 1 | BA11: 2
A12: 응암1동 | B12: 1339 | C12: 744 | D12: 595 | F12: 583 | G12: 321 | H12: 262 | I12: 143 | J12: 79 | K12: 64 | L12: 222 | M12: 109 | N12: 113 | O12: 8 | Q12: 6 | R12: 2 | S12: 70 | T12: 37 | V12: 33 | W12: 152 | X12: 96 | Y12: 56 | Z12: 19 | AA12: 18 | AB12: 1 | AC12: 51 | AD12: 26 | AE12: 25 | AF12: 55 | AG12: 28 | AH12: 27 | AI12: 9 | AJ12: 4 | AL12: 5 | AM12: 6 | AN12: 5 | AO12: 1 | AP12: 11 | AQ12: 6 | AR12: 5 | AS12: 0 | AT12: 0 | AU12: 0 | AV12: 8 | AW12: 8 | AX12: 0 | AY12: 2 | AZ12: 1 | BA12: 1
A13: 응암2동 | B13: 983 | C13: 558 | D13: 425 | F13: 402 | G13: 226 | H13: 176 | I13: 95 | J13: 48 | K13: 47 | L13: 152 | M13: 77 | N13: 75 | O13: 8 | Q13: 7 | R13: 1 | S13: 65 | T13: 40 | V13: 25 | W13: 101 | X13: 57 | Y13: 44 | Z13: 30 | AA13: 23 | AB13: 7 | AC13: 49 | AD13: 31 | AE13: 18 | AF13: 47 | AG13: 28 | AH13: 19 | AI13: 2 | AJ13: 1 | AL13: 1 | AM13: 6 | AN13: 5 | AO13: 1 | AP13: 8 | AQ13: 4 | AR13: 4 | AS13: 1 | AT13: 0 | AU13: 1 | AV13: 11 | AW13: 6 | AX13: 5 | AY13: 6 | AZ13: 5 | BA13: 1
A14: 응암3동 | B14: 1343 | C14: 773 | D14: 570 | F14: 573 | G14: 311 | H14: 262 | I14: 149 | J14: 86 | K14: 63 | L14: 212 | M14: 109 | N14: 103 | O14: 13 | Q14: 10 | R14: 3 | S14: 94 | T14: 63 | V14: 31 | W14: 139 | X14: 86 | Y14: 53 | Z14: 15 | AA14: 12 | AB14: 3 | AC14: 57 | AD14: 32 | AE14: 25 | AF14: 51 | AG14: 39 | AH14: 12 | AI14: 2 | AJ14: 1 | AL14: 1 | AM14: 8 | AN14: 6 | AO14: 2 | AP14: 12 | AQ14: 6 | AR14: 6 | AS14: 3 | AT14: 2 | AU14: 1 | AV14: 9 | AW14: 8 | AX14: 1 | AY14: 6 | AZ14: 2 | BA14: 4
A15: 역촌동 | B15: 2123 | C15: 1191 | D15: 932 | F15: 904 | G15: 480 | H15: 424 | I15: 202 | J15: 122 | K15: 80 | L15: 331 | M15: 184 | N15: 147 | O15: 20 | Q15: 13 | R15: 7 | S15: 186 | T15: 110 | V15: 76 | W15: 230 | X15: 140 | Y15: 90 | Z15: 33 | AA15: 28 | AB15: 5 | AC15: 89 | AD15: 40 | AE15: 49 | AF15: 75 | AG15: 42 | AH15: 33 | AI15: 1 | AJ15: 1 | AL15: 0 | AM15: 12 | AN15: 5 | AO15: 7 | AP15: 12 | AQ15: 8 | AR15: 4 | AS15: 1 | AT15: 1 | AU15: 0 | AV15: 19 | AW15: 12 | AX15: 7 | AY15: 8 | AZ15: 5 | BA15: 3
A16: 신사1동 | B16: 1233 | C16: 730 | D16: 503 | F16: 509 | G16: 289 | H16: 220 | I16: 153 | J16: 88 | K16: 65 | L16: 175 | M16: 107 | N16: 68 | O16: 10 | Q16: 6 | R16: 4 | S16: 127 | T16: 81 | V16: 46 | W16: 118 | X16: 63 | Y16: 55 | Z16: 24 | AA16: 20 | AB16: 4 | AC16: 46 | AD16: 30 | AE16: 16 | AF16: 37 | AG16: 26 | AH16: 11 | AI16: 1 | AJ16: 0 | AL16: 1 | AM16: 9 | AN16: 6 | AO16: 3 | AP16: 7 | AQ16: 6 | AR16: 1 | AS16: 3 | AT16: 1 | AU16: 2 | AV16: 11 | AW16: 6 | AX16: 5 | AY16: 3 | AZ16: 1 | BA16: 2
A17: 신사2동 | B17: 878 | C17: 508 | D17: 370 | F17: 376 | G17: 202 | H17: 174 | I17: 85 | J17: 56 | K17: 29 | L17: 126 | M17: 70 | N17: 56 | O17: 8 | Q17: 7 | R17: 1 | S17: 81 | T17: 49 | V17: 32 | W17: 78 | X17: 46 | Y17: 32 | Z17: 16 | AA17: 14 | AB17: 2 | AC17: 32 | AD17: 20 | AE17: 12 | AF17: 50 | AG17: 30 | AH17: 20 | AI17: 2 | AJ17: 0 | AL17: 2 | AM17: 6 | AN17: 5 | AO17: 1 | AP17: 5 | AQ17: 4 | AR17: 1 | AS17: 0 | AT17: 0 | AU17: 0 | AV17: 9 | AW17: 3 | AX17: 6 | AY17: 4 | AZ17: 2 | BA17: 2
A18: 증산동 | B18: 819 | C18: 468 | D18: 351 | F18: 352 | G18: 190 | H18: 162 | I18: 73 | J18: 48 | K18: 25 | L18: 141 | M18: 83 | N18: 58 | O18: 6 | Q18: 3 | R18: 3 | S18: 62 | T18: 41 | V18: 21 | W18: 74 | X18: 39 | Y18: 35 | Z18: 16 | AA18: 16 | AB18: 0 | AC18: 31 | AD18: 12 | AE18: 19 | AF18: 37 | AG18: 18 | AH18: 19 | AI18: 2 | AJ18: 1 | AL18: 1 | AM18: 2 | AN18: 2 | AO18: 0 | AP18: 8 | AQ18: 7 | AR18: 1 | AS18: 2 | AT18: 0 | AU18: 2 | AV18: 9 | AW18: 7 | AX18: 2 | AY18: 4 | AZ18: 1 | BA18: 3
A19: 수색동 | B19: 630 | C19: 345 | D19: 285 | F19: 258 | G19: 133 | H19: 125 | I19: 77 | J19: 42 | K19: 35 | L19: 90 | M19: 52 | N19: 38 | O19: 4 | Q19: 3 | R19: 1 | S19: 53 | T19: 34 | V19: 19 | W19: 72 | X19: 37 | Y19: 35 | Z19: 15 | AA19: 12 | AB19: 3 | AC19: 22 | AD19: 13 | AE19: 9 | AF19: 24 | AG19: 14 | AH19: 10 | AI19: 1 | AJ19: 0 | AL19: 1 | AM19: 2 | AN19: 0 | AO19: 2 | AP19: 7 | AQ19: 3 | AR19: 4 | AS19: 1 | AT19: 1 | AU19: 0 | AV19: 4 | AW19: 1 | AX19: 3 | AY19: 0 | AZ19: 0 | BA19: 0
A20: 진관동 | B20: 1949 | C20: 1118 | D20: 831 | F20: 811 | G20: 440 | H20: 371 | I20: 211 | J20: 120 | K20: 91 | L20: 281 | M20: 145 | N20: 136 | O20: 12 | Q20: 11 | R20: 1 | S20: 127 | T20: 80 | V20: 47 | W20: 239 | X20: 145 | Y20: 94 | Z20: 73 | AA20: 62 | AB20: 11 | AC20: 55 | AD20: 27 | AE20: 28 | AF20: 75 | AG20: 47 | AH20: 28 | AI20: 8 | AJ20: 4 | AL20: 4 | AM20: 7 | AN20: 4 | AO20: 3 | AP20: 20 | AQ20: 15 | AR20: 5 | AS20: 2 | AT20: 0 | AU20: 2 | AV20: 23 | AW20: 15 | AX20: 8 | AY20: 5 | AZ20: 3 | BA20: 2

Sheet 정도별
B2: 은평구 동별 장애인현황(정도별)
B3: *2022. 8월말 기준 | K3: (단위 : 명)
B4: 자치구 | C4: 동 | D4: 합계 | G4: 심한 장애 | J4: 심하지 않은 장애
D5: 계 | E5: 남자 | F5: 여자 | G5: 계 | H5: 남자 | I5: 여자 | J5: 계 | K5: 남자 | L5: 여자
B6: 은평구 | C6: 합 계 | D6: =SUM(D7:D22) -> 21753 | E6: =SUM(E7:E22) -> 12687 | F6: 9066 | G6: =SUM(G7:G22) -> 8259 | H6: =SUM(H7:H22) -> 5137 | I6: 3122 | J6: 13494 | K6: 7550 | L6: 5944
C7: 녹번동 | D7: =SUM(E7:F7) -> 1667 | E7: =SUM(H7,K7) -> 950 | F7: =SUM(I7,L7) -> 717 | G7: 568 | H7: 331 | I7: 237 | J7: 1099 | K7: 619 | L7: 480
C8: 불광1동 | D8: =SUM(E8:F8) -> 1700 | E8: =SUM(H8,K8) -> 948 | F8: =SUM(I8,L8) -> 752 | G8: 606 | H8: 345 | I8: 261 | J8: 1094 | K8: 603 | L8: 491
C9: 불광2동 | D9: 1419 | E9: 832 | F9: 587 | G9: 483 | H9: 290 | I9: 193 | J9: 936 | K9: 542 | L9: 394
C10: 갈현1동 | D10: 1025 | E10: 604 | F10: 421 | G10: 374 | H10: 219 | I10: 155 | J10: 651 | K10: 385 | L10: 266
C11: 갈현2동 | D11: 1223 | E11: 706 | F11: 517 | G11: 465 | H11: 269 | I11: 196 | J11: 758 | K11: 437 | L11: 321
C12: 구산동 | D12: 2182 | E12: 1498 | F12: 684 | G12: 1231 | H12: 950 | I12: 281 | J12: 951 | K12: 548 | L12: 403
C13: 대조동 | D13: 1240 | E13: 714 | F13: 526 | G13: 424 | H13: 260 | I13: 164 | J13: 816 | K13: 454 | L13: 362
C14: 응암1동 | D14: 1339 | E14: 744 | F14: 595 | G14: 469 | H14: 259 | I14: 210 | J14: 870 | K14: 485 | L14: 385
C15: 응암2동 | D15: 983 | E15: 558 | F15: 425 | G15: 368 | H15: 229 | I15: 139 | J15: 615 | K15: 329 | L15: 286
C16: 응암3동 | D16: 1343 | E16: 773 | F16: 570 | G16: 427 | H16: 270 | I16: 157 | J16: 916 | K16: 503 | L16: 413
C17: 역촌동 | D17: 2123 | E17: 1191 | F17: 932 | G17: 773 | H17: 449 | I17: 324 | J17: 1350 | K17: 742 | L17: 608
C18: 신사1동 | D18: 1233 | E18: 730 | F18: 503 | G18: 452 | H18: 286 | I18: 166 | J18: 781 | K18: 444 | L18: 337
C19: 신사2동 | D19: 878 | E19: 508 | F19: 370 | G19: 320 | H19: 195 | I19: 125 | J19: 558 | K19: 313 | L19: 245
C20: 증산동 | D20: 819 | E20: 468 | F20: 351 | G20: 295 | H20: 181 | I20: 114 | J20: 524 | K20: 287 | L20: 237
C21: 수색동 | D21: 630 | E21: 345 | F21: 285 | G21: 233 | H21: 134 | I21: 99 | J21: 397 | K21: 211 | L21: 186
C22: 진관동 | D22: 1949 | E22: 1118 | F22: 831 | G22: 771 | H22: 470 | I22: 301 | J22: 1178 | K22: 648 | L22: 530

Sheet 연령별
A1: 은평구 장애인 연령구간별(5세 간격), 장애정도별 등록 현황
A2: *2022. 8월말 기준
J3: (단위: 명)
A4: 구분 | B4: 나이 | C4: 합계 | F4: 심한 장애 | I4: 심하지 않은 장애
C5: 합계 | D5: 남성 | E5: 여성 | F5: 소계 | G5: 남성 | H5: 여성 | I5: 소계 | J5: 남성 | K5: 여성
A6: 합계 | B6: 합계 | C6: =SUM(C7:C28) -> 21753 | D6: =SUM(D7:D28) -> 12687 | E6: 9066 | F6: 8259 | G6: 5137 | H6: 3122 | I6: 13494 | J6: 7550 | K6: 5944
B7: 0~4 | C7: 57 | D7: 30 | E7: 27 | F7: 44 | G7: 23 | H7: 21 | I7: 13 | J7: 7 | K7: 6
B8: 5~9 | C8: 246 | D8: 167 | E8: 79 | F8: 216 | G8: 149 | H8: 67 | I8: 30 | J8: 18 | K8: 12
B9: 10~14 | C9: 267 | D9: 173 | E9: 94 | F9: 238 | G9: 155 | H9: 83 | I9: 29 | J9: 18 | K9: 11
B10: 15~19 | C10: 283 | D10: 179 | E10: 104 | F10: 255 | G10: 163 | H10: 92 | I10: 28 | J10: 16 | K10: 12
B11: 20~24 | C11: 409 | D11: 259 | E11: 150 | F11: 333 | G11: 215 | H11: 118 | I11: 76 | J11: 44 | K11: 32
B12: 25~29 | C12: 497 | D12: 311 | E12: 186 | F12: 377 | G12: 246 | H12: 131 | I12: 120 | J12: 65 | K12: 55
B13: 30~34 | C13: 514 | D13: 342 | E13: 172 | F13: 359 | G13: 236 | H13: 123 | I13: 155 | J13: 106 | K13: 49
B14: 35~39 | C14: 537 | D14: 356 | E14: 181 | F14: 300 | G14: 192 | H14: 108 | I14: 237 | J14: 164 | K14: 73
B15: 40~44 | C15: 739 | D15: 504 | E15: 235 | F15: 381 | G15: 245 | H15: 136 | I15: 358 | J15: 259 | K15: 99
B16: 45~49 | C16: 1052 | D16: 742 | E16: 310 | F16: 533 | G16: 357 | H16: 176 | I16: 519 | J16: 385 | K16: 134
B17: 50~54 | C17: 1483 | D17: 1024 | E17: 459 | F17: 694 | G17: 454 | H17: 240 | I17: 789 | J17: 570 | K17: 219
B18: 55~59 | C18: 1771 | D18: 1195 | E18: 576 | F18: 720 | G18: 471 | H18: 249 | I18: 1051 | J18: 724 | K18: 327
B19: 60~64 | C19: 2384 | D19: 1565 | E19: 819 | F19: 845 | G19: 559 | H19: 286 | I19: 1539 | J19: 1006 | K19: 533
B20: 65~69 | C20: 2425 | D20: 1438 | E20: 987 | F20: 738 | G20: 478 | H20: 260 | I20: 1687 | J20: 960 | K20: 727
B21: 70~74 | C21: 2494 | D21: 1381 | E21: 1113 | F21: 688 | G21: 430 | H21: 258 | I21: 1806 | J21: 951 | K21: 855
B22: 75~79 | C22: 2568 | D22: 1304 | E22: 1264 | F22: 620 | G22: 352 | H22: 268 | I22: 1948 | J22: 952 | K22: 996
B23: 80~84 | C23: 2290 | D23: 1073 | E23: 1217 | F23: 513 | G23: 250 | H23: 263 | I23: 1777 | J23: 823 | K23: 954
B24: 85~89 | C24: 1288 | D24: 496 | E24: 792 | F24: 300 | G24: 127 | H24: 173 | I24: 988 | J24: 369 | K24: 619
B25: 90~94 | C25: 371 | D25: 123 | E25: 248 | F25: 87 | G25: 28 | H25: 59 | I25: 284 | J25: 95 | K25: 189
B26: 95~99 | C26: 69 | D26: 22 | E26: 47 | F26: 15 | G26: 6 | H26: 9 | I26: 54 | J26: 16 | K26: 38
B27: 100~104 | C27: 8 | D27: 2 | E27: 6 | F27: 3 | G27: 1 | H27: 2 | I27: 5 | J27: 1 | K27: 4
B28: 110~114 | C28: 1 | D28: 1 | E28: 0 | F28: 0 | G28: 0 | H28: 0 | I28: 1 | J28: 1 | K28: 0

Sheet 연령별,유형별
B1: 은평구 등록장애인 연령별, 유형별 현황
C2: * 2022. 8월말 기준
B3: 구분 | C3: 나이 | D3: 합계 | H3: 지체 | K3: 시각 | N3: 청각 | Q3: 언어 | U3: 지적 | Y3: 뇌병변 | AB3: 자폐 | AE3: 정신 | AH3: 신장 | AK3: 심장 | AO3: 호흡기 | AR3: 간 | AU3: 안면 | AX3: 장루.요루 | BA3: 뇌전증
D4: 합계 | E4: 남성 | F4: 여성 | H4: 소계 | I4: 남성 | J4: 여성 | K4: 소계 | L4: 남성 | M4: 여성 | N4: 소계 | O4: 남성 | P4: 여성 | Q4: 소계 | S4: 남성 | T4: 여성 | U4: 소계 | V4: 남성 | X4: 여성 | Y4: 소계 | Z4: 남성 | AA4: 여성 | AB4: 소계 | AC4: 남성 | AD4: 여성 | AE4: 소계 | AF4: 남성 | AG4: 여성 | AH4: 소계 | AI4: 남성 | AJ4: 여성 | AK4: 소계 | AL4: 남성 | AN4: 여성 | AO4: 소계 | AP4: 남성 | AQ4: 여성 | AR4: 소계 | AS4: 남성 | AT4: 여성 | AU4: 소계 | AV4: 남성 | AW4: 여성 | AX4: 소계 | AY4: 남성 | AZ4: 여성 | BA4: 소계 | BB4: 남성 | BC4: 여성
B5: 합계 | D5: 21753 | E5: 12687 | F5: 9066 | H5: 8837 | I5: 4842 | J5: 3995 | K5: 2274 | L5: 1364 | M5: 910 | N5: 3350 | O5: 1853 | P5: 1497 | Q5: 181 | S5: 134 | T5: 47 | U5: 1828 | V5: 1200 | X5: 628 | Y5: 2218 | Z5: 1318 | AA5: 900 | AB5: 396 | AC5: 333 | AD5: 63 | AE5: 1148 | AF5: 705 | AG5: 443 | AH5: 894 | AI5: 542 | AJ5: 352 | AK5: 55 | AL5: 24 | AN5: 31 | AO5: 120 | AP5: 86 | AQ5: 34 | AR5: 168 | AS5: 113 | AT5: 55 | AU5: 22 | AV5: 11 | AW5: 11 | AX5: 194 | AY5: 126 | AZ5: 68 | BA5: 68 | BB5: 36 | BC5: 32
B6: 합계 | C6: 2 | D6: 10 | E6: 4 | F6: 6 | H6: 0 | I6: 0 | J6: 0 | K6: 0 | L6: 0 | M6: 0 | N6: 3 | O6: 1 | P6: 2 | Q6: 0 | S6: 0 | T6: 0 | U6: 1 | V6: 1 | X6: 0 | Y6: 5 | Z6: 2 | AA6: 3 | AB6: 0 | AC6: 0 | AD6: 0 | AE6: 0 | AF6: 0 | AG6: 0 | AH6: 0 | AI6: 0 | AJ6: 0 | AK6: 0 | AL6: 0 | AN6: 0 | AO6: 0 | AP6: 0 | AQ6: 0 | AR6: 0 | AS6: 0 | AT6: 0 | AU6: 0 | AV6: 0 | AW6: 0 | AX6: 1 | AY6: 0 | AZ6: 1 | BA6: 0 | BB6: 0 | BC6: 0
C7: 3 | D7: 20 | E7: 11 | F7: 9 | H7: 1 | I7: 0 | J7: 1 | K7: 1 | L7: 1 | M7: 0 | N7: 4 | O7: 2 | P7: 2 | Q7: 0 | S7: 0 | T7: 0 | U7: 1 | V7: 1 | X7: 0 | Y7: 11 | Z7: 5 | AA7: 6 | AB7: 2 | AC7: 2 | AD7: 0 | AE7: 0 | AF7: 0 | AG7: 0 | AH7: 0 | AI7: 0 | AJ7: 0 | AK7: 0 | AL7: 0 | AN7: 0 | AO7: 0 | AP7: 0 | AQ7: 0 | AR7: 0 | AS7: 0 | AT7: 0 | AU7: 0 | AV7: 0 | AW7: 0 | AX7: 0 | AY7: 0 | AZ7: 0 | BA7: 0 | BB7: 0 | BC7: 0
C8: 4 | D8: 27 | E8: 15 | F8: 12 | H8: 1 | I8: 0 | J8: 1 | K8: 0 | L8: 0 | M8: 0 | N8: 0 | O8: 0 | P8: 0 | Q8: 2 | S8: 2 | T8: 0 | U8: 4 | V8: 2 | X8: 2 | Y8: 13 | Z8: 4 | AA8: 9 | AB8: 7 | AC8: 7 | AD8: 0 | AE8: 0 | AF8: 0 | AG8: 0 | AH8: 0 | AI8: 0 | AJ8: 0 | AK8: 0 | AL8: 0 | AN8: 0 | AO8: 0 | AP8: 0 | AQ8: 0 | AR8: 0 | AS8: 0 | AT8: 0 | AU8: 0 | AV8: 0 | AW8: 0 | AX8: 0 | AY8: 0 | AZ8: 0 | BA8: 0 | BB8: 0 | BC8: 0
C9: 5 | D9: 35 | E9: 28 | F9: 7 | H9: 1 | I9: 1 | J9: 0 | K9: 0 | L9: 0 | M9: 0 | N9: 1 | O9: 0 | P9: 1 | Q9: 7 | S9: 6 | T9: 1 | U9: 8 | V9: 7 | X9: 1 | Y9: 5 | Z9: 4 | AA9: 1 | AB9: 11 | AC9: 8 | AD9: 3 | AE9: 0 | AF9: 0 | AG9: 0 | AH9: 0 | AI9: 0 | AJ9: 0 | AK9: 0 | AL9: 0 | AN9: 0 | AO9: 0 | AP9: 0 | AQ9: 0 | AR9: 0 | AS9: 0 | AT9: 0 | AU9: 0 | AV9: 0 | AW9: 0 | AX9: 1 | AY9: 1 | AZ9: 0 | BA9: 1 | BB9: 1 | BC9: 0
C10: 6 | D10: 51 | E10: 38 | F10: 13 | H10: 0 | I10: 0 | J10: 0 | K10: 1 | L10: 0 | M10: 1 | N10: 2 | O10: 1 | P10: 1 | Q10: 8 | S10: 7 | T10: 1 | U10: 11 | V10: 8 | X10: 3 | Y10: 3 | Z10: 1 | AA10: 2 | AB10: 25 | AC10: 21 | AD10: 4 | AE10: 0 | AF10: 0 | AG10: 0 | AH10: 0 | AI10: 0 | AJ10: 0 | AK10: 0 | AL10: 0 | AN10: 0 | AO10: 0 | AP10: 0 | AQ10: 0 | AR10: 1 | AS10: 0 | AT10: 1 | AU10: 0 | AV10: 0 | AW10: 0 | AX10: 0 | AY10: 0 | AZ10: 0 | BA10: 0 | BB10: 0 | BC10: 0
C11: 7 | D11: 47 | E11: 33 | F11: 14 | H11: 0 | I11: 0 | J11: 0 | K11: 0 | L11: 0 | M11: 0 | N11: 5 | O11: 1 | P11: 4 | Q11: 1 | S11: 0 | T11: 1 | U11: 17 | V11: 13 | X11: 4 | Y11: 4 | Z11: 2 | AA11: 2 | AB11: 19 | AC11: 16 | AD11: 3 | AE11: 0 | AF11: 0 | AG11: 0 | AH11: 0 | AI11: 0 | AJ11: 0 | AK11: 0 | AL11: 0 | AN11: 0 | AO11: 0 | AP11: 0 | AQ11: 0 | AR11: 1 | AS11: 1 | AT11: 0 | AU11: 0 | AV11: 0 | AW11: 0 | AX11: 0 | AY11: 0 | AZ11: 0 | BA11: 0 | BB11: 0 | BC11: 0
C12: 8 | D12: 58 | E12: 32 | F12: 26 | H12: 0 | I12: 0 | J12: 0 | K12: 0 | L12: 0 | M12: 0 | N12: 2 | O12: 1 | P12: 1 | Q12: 2 | S12: 1 | T12: 1 | U12: 21 | V12: 9 | X12: 12 | Y12: 11 | Z12: 7 | AA12: 4 | AB12: 22 | AC12: 14 | AD12: 8 | AE12: 0 | AF12: 0 | AG12: 0 | AH12: 0 | AI12: 0 | AJ12: 0 | AK12: 0 | AL12: 0 | AN12: 0 | AO12: 0 | AP12: 0 | AQ12: 0 | AR12: 0 | AS12: 0 | AT12: 0 | AU12: 0 | AV12: 0 | AW12: 0 | AX12: 0 | AY12: 0 | AZ12: 0 | BA12: 0 | BB12: 0 | BC12: 0
C13: 9 | D13: 55 | E13: 36 | F13: 19 | H13: 0 | I13: 0 | J13: 0 | K13: 1 | L13: 0 | M13: 1 | N13: 2 | O13: 0 | P13: 2 | Q13: 1 | S13: 1 | T13: 0 | U13: 22 | V13: 15 | X13: 7 | Y13: 9 | Z13: 4 | AA13: 5 | AB13: 18 | AC13: 14 | AD13: 4 | AE13: 0 | AF13: 0 | AG13: 0 | AH13: 0 | AI13: 0 | AJ13: 0 | AK13: 1 | AL13: 1 | AN13: 0 | AO13: 0 | AP13: 0 | AQ13: 0 | AR13: 1 | AS13: 1 | AT13: 0 | AU13: 0 | AV13: 0 | AW13: 0 | AX13: 0 | AY13: 0 | AZ13: 0 | BA13: 0 | BB13: 0 | BC13: 0
C14: 10 | D14: 61 | E14: 34 | F14: 27 | H14: 1 | I14: 0 | J14: 1 | K14: 2 | L14: 2 | M14: 0 | N14: 1 | O14: 0 | P14: 1 | Q14: 0 | S14: 0 | T14: 0 | U14: 25 | V14: 10 | X14: 15 | Y14: 12 | Z14: 5 | AA14: 7 | AB14: 20 | AC14: 17 | AD14: 3 | AE14: 0 | AF14: 0 | AG14: 0 | AH14: 0 | AI14: 0 | AJ14: 0 | AK14: 0 | AL14: 0 | AN14: 0 | AO14: 0 | AP14: 0 | AQ14: 0 | AR14: 0 | AS14: 0 | AT14: 0 | AU14: 0 | AV14: 0 | AW14: 0 | AX14: 0 | AY14: 0 | AZ14: 0 | BA14: 0 | BB14: 0 | BC14: 0
C15: 11 | D15: 55 | E15: 40 | F15: 15 | H15: 3 | I15: 2 | J15: 1 | K15: 3 | L15: 1 | M15: 2 | N15: 3 | O15: 1 | P15: 2 | Q15: 0 | S15: 0 | T15: 0 | U15: 21 | V15: 15 | X15: 6 | Y15: 4 | Z15: 3 | AA15: 1 | AB15: 21 | AC15: 18 | AD15: 3 | AE15: 0 | AF15: 0 | AG15: 0 | AH15: 0 | AI15: 0 | AJ15: 0 | AK15: 0 | AL15: 0 | AN15: 0 | AO15: 0 | AP15: 0 | AQ15: 0 | AR15: 0 | AS15: 0 | AT15: 0 | AU15: 0 | AV15: 0 | AW15: 0 | AX15: 0 | AY15: 0 | AZ15: 0 | BA15: 0 | BB15: 0 | BC15: 0
C16: 12 | D16: 59 | E16: 40 | F16: 19 | H16: 1 | I16: 1 | J16: 0 | K16: 1 | L16: 0 | M16: 1 | N16: 1 | O16: 0 | P16: 1 | Q16: 2 | S16: 1 | T16: 1 | U16: 22 | V16: 12 | X16: 10 | Y16: 8 | Z16: 6 | AA16: 2 | AB16: 24 | AC16: 20 | AD16: 4 | AE16: 0 | AF16: 0 | AG16: 0 | AH16: 0 | AI16: 0 | AJ16: 0 | AK16: 0 | AL16: 0 | AN16: 0 | AO16: 0 | AP16: 0 | AQ16: 0 | AR16: 0 | AS16: 0 | AT16: 0 | AU16: 0 | AV16: 0 | AW16: 0 | AX16: 0 | AY16: 0 | AZ16: 0 | BA16: 0 | BB16: 0 | BC16: 0
C17: 13 | D17: 44 | E17: 25 | F17: 19 | H17: 1 | I17: 1 | J17: 0 | K17: 1 | L17: 0 | M17: 1 | N17: 1 | O17: 1 | P17: 0 | Q17: 0 | S17: 0 | T17: 0 | U17: 20 | V17: 9 | X17: 11 | Y17: 5 | Z17: 2 | AA17: 3 | AB17: 14 | AC17: 10 | AD17: 4 | AE17: 0 | AF17: 0 | AG17: 0 | AH17: 0 | AI17: 0 | AJ17: 0 | AK17: 1 | AL17: 1 | AN17: 0 | AO17: 0 | AP17: 0 | AQ17: 0 | AR17: 1 | AS17: 1 | AT17: 0 | AU17: 0 | AV17: 0 | AW17: 0 | AX17: 0 | AY17: 0 | AZ17: 0 | BA17: 0 | BB17: 0 | BC17: 0
C18: 14 | D18: 48 | E18: 34 | F18: 14 | H18: 0 | I18: 0 | J18: 0 | K18: 2 | L18: 0 | M18: 2 | N18: 1 | O18: 0 | P18: 1 | Q18: 1 | S18: 1 | T18: 0 | U18: 26 | V18: 21 | X18: 5 | Y18: 10 | Z18: 5 | AA18: 5 | AB18: 8 | AC18: 7 | AD18: 1 | AE18: 0 | AF18: 0 | AG18: 0 | AH18: 0 | AI18: 0 | AJ18: 0 | AK18: 0 | AL18: 0 | AN18: 0 | AO18: 0 | AP18: 0 | AQ18: 0 | AR18: 0 | AS18: 0 | AT18: 0 | AU18: 0 | AV18: 0 | AW18: 0 | AX18: 0 | AY18: 0 | AZ18: 0 | BA18: 0 | BB18: 0 | BC18: 0
C19: 15 | D19: 51 | E19: 33 | F19: 18 | H19: 2 | I19: 0 | J19: 2 | K19: 0 | L19: 0 | M19: 0 | N19: 2 | O19: 2 | P19: 0 | Q19: 0 | S19: 0 | T19: 0 | U19: 32 | V19: 19 | X19: 13 | Y19: 6 | Z19: 4 | AA19: 2 | AB19: 8 | AC19: 7 | AD19: 1 | AE19: 0 | AF19: 0 | AG19: 0 | AH19: 0 | AI19: 0 | AJ19: 0 | AK19: 0 | AL19: 0 | AN19: 0 | AO19: 0 | AP19: 0 | AQ19: 0 | AR19: 1 | AS19: 1 | AT19: 0 | AU19: 0 | AV19: 0 | AW19: 0 | AX19: 0 | AY19: 0 | AZ19: 0 | BA19: 0 | BB19: 0 | BC19: 0
C20: 16 | D20: 42 | E20: 28 | F20: 14 | H20: 3 | I20: 2 | J20: 1 | K20: 1 | L20: 1 | M20: 0 | N20: 0 | O20: 0 | P20: 0 | Q20: 0 | S20: 0 | T20: 0 | U20: 29 | V20: 21 | X20: 8 | Y20: 5 | Z20: 1 | AA20: 4 | AB20: 4 | AC20: 3 | AD20: 1 | AE20: 0 | AF20: 0 | AG20: 0 | AH20: 0 | AI20: 0 | AJ20: 0 | AK20: 0 | AL20: 0 | AN20: 0 | AO20: 0 | AP20: 0 | AQ20: 0 | AR20: 0 | AS20: 0 | AT20: 0 | AU20: 0 | AV20: 0 | AW20: 0 | AX20: 0 | AY20: 0 | AZ20: 0 | BA20: 0 | BB20: 0 | BC20: 0
C21: 17 | D21: 55 | E21: 35 | F21: 20 | H21: 6 | I21: 2 | J21: 4 | K21: 3 | L21: 1 | M21: 2 | N21: 2 | O21: 1 | P21: 1 | Q21: 0 | S21: 0 | T21: 0 | U21: 32 | V21: 21 | X21: 11 | Y21: 3 | Z21: 2 | AA21: 1 | AB21: 8 | AC21: 7 | AD21: 1 | AE21: 0 | AF21: 0 | AG21: 0 | AH21: 0 | AI21: 0 | AJ21: 0 | AK21: 0 | AL21: 0 | AN21: 0 | AO21: 0 | AP21: 0 | AQ21: 0 | AR21: 0 | AS21: 0 | AT21: 0 | AU21: 0 | AV21: 0 | AW21: 0 | AX21: 0 | AY21: 0 | AZ21: 0 | BA21: 1 | BB21: 1 | BC21: 0
C22: 18 | D22: 72 | E22: 45 | F22: 27 | H22: 2 | I22: 2 | J22: 0 | K22: 0 | L22: 0 | M22: 0 | N22: 3 | O22: 1 | P22: 2 | Q22: 1 | S22: 1 | T22: 0 | U22: 45 | V22: 24 | X22: 21 | Y22: 8 | Z22: 6 | AA22: 2 | AB22: 12 | AC22: 11 | AD22: 1 | AE22: 0 | AF22: 0 | AG22: 0 | AH22: 1 | AI22: 0 | AJ22: 1 | AK22: 0 | AL22: 0 | AN22: 0 | AO22: 0 | AP22: 0 | AQ22: 0 | AR22: 0 | AS22: 0 | AT22: 0 | AU22: 0 | AV22: 0 | AW22: 0 | AX22: 0 | AY22: 0 | AZ22: 0 | BA22: 0 | BB22: 0 | BC22: 0
C23: 19 | D23: 63 | E23: 38 | F23: 25 | H23: 4 | I23: 4 | J23: 0 | K23: 0 | L23: 0 | M23: 0 | N23: 2 | O23: 1 | P23: 1 | Q23: 1 | S23: 1 | T23: 0 | U23: 41 | V23: 21 | X23: 20 | Y23: 5 | Z23: 3 | AA23: 2 | AB23: 6 | AC23: 5 | AD23: 1 | AE23: 0 | AF23: 0 | AG23: 0 | AH23: 0 | AI23: 0 | AJ23: 0 | AK23: 2 | AL23: 2 | AN23: 0 | AO23: 0 | AP23: 0 | AQ23: 0 | AR23: 2 | AS23: 1 | AT23: 1 | AU23: 0 | AV23: 0 | AW23: 0 | AX23: 0 | AY23: 0 | AZ23: 0 | BA23: 0 | BB23: 0 | BC23: 0
C24: 20 | D24: 71 | E24: 41 | F24: 30 | H24: 5 | I24: 1 | J24: 4 | K24: 4 | L24: 3 | M24: 1 | N24: 5 | O24: 1 | P24: 4 | Q24: 0 | S24: 0 | T24: 0 | U24: 41 | V24: 28 | X24: 13 | Y24: 6 | Z24: 1 | AA24: 5 | AB24: 5 | AC24: 4 | AD24: 1 | AE24: 1 | AF24: 1 | AG24: 0 | AH24: 0 | AI24: 0 | AJ24: 0 | AK24: 1 | AL24: 1 | AN24: 0 | AO24: 0 | AP24: 0 | AQ24: 0 | AR24: 2 | AS24: 0 | AT24: 2 | AU24: 0 | AV24: 0 | AW24: 0 | AX24: 1 | AY24: 1 | AZ24: 0 | BA24: 0 | BB24: 0 | BC24: 0
C25: 21 | D25: 75 | E25: 49 | F25: 26 | H25: 7 | I25: 3 | J25: 4 | K25: 6 | L25: 3 | M25: 3 | N25: 3 | O25: 3 | P25: 0 | Q25: 0 | S25: 0 | T25: 0 | U25: 42 | V25: 26 | X25: 16 | Y25: 3 | Z25: 3 | AA25: 0 | AB25: 13 | AC25: 11 | AD25: 2 | AE25: 0 | AF25: 0 | AG25: 0 | AH25: 1 | AI25: 0 | AJ25: 1 | AK25: 0 | AL25: 0 | AN25: 0 | AO25: 0 | AP25: 0 | AQ25: 0 | AR25: 0 | AS25: 0 | AT25: 0 | AU25: 0 | AV25: 0 | AW25: 0 | AX25: 0 | AY25: 0 | AZ25: 0 | BA25: 0 | BB25: 0 | BC25: 0
C26: 22 | D26: 91 | E26: 57 | F26: 34 | H26: 7 | I26: 4 | J26: 3 | K26: 3 | L26: 1 | M26: 2 | N26: 8 | O26: 3 | P26: 5 | Q26: 0 | S26: 0 | T26: 0 | U26: 44 | V26: 30 | X26: 14 | Y26: 5 | Z26: 4 | AA26: 1 | AB26: 17 | AC26: 14 | AD26: 3 | AE26: 2 | AF26: 1 | AG26: 1 | AH26: 0 | AI26: 0 | AJ26: 0 | AK26: 3 | AL26: 0 | AN26: 3 | AO26: 0 | AP26: 0 | AQ26: 0 | AR26: 1 | AS26: 0 | AT26: 1 | AU26: 0 | AV26: 0 | AW26: 0 | AX26: 0 | AY26: 0 | AZ26: 0 | BA26: 1 | BB26: 0 | BC26: 1
C27: 23 | D27: 88 | E27: 62 | F27: 26 | H27: 6 | I27: 1 | J27: 5 | K27: 6 | L27: 3 | M27: 3 | N27: 5 | O27: 4 | P27: 1 | Q27: 0 | S27: 0 | T27: 0 | U27: 38 | V27: 26 | X27: 12 | Y27: 10 | Z27: 7 | AA27: 3 | AB27: 17 | AC27: 16 | AD27: 1 | AE27: 1 | AF27: 1 | AG27: 0 | AH27: 0 | AI27: 0 | AJ27: 0 | AK27: 1 | AL27: 1 | AN27: 0 | AO27: 0 | AP27: 0 | AQ27: 0 | AR27: 3 | AS27: 2 | AT27: 1 | AU27: 0 | AV27: 0 | AW27: 0 | AX27: 0 | AY27: 0 | AZ27: 0 | BA27: 1 | BB27: 1 | BC27: 0
C28: 24 | D28: 84 | E28: 50 | F28: 34 | H28: 9 | I28: 7 | J28: 2 | K28: 7 | L28: 4 | M28: 3 | N28: 4 | O28: 0 | P28: 4 | Q28: 1 | S28: 1 | T28: 0 | U28: 46 | V28: 27 | X28: 19 | Y28: 2 | Z28: 1 | AA28: 1 | AB28: 10 | AC28: 8 | AD28: 2 | AE28: 3 | AF28: 0 | AG28: 3 | AH28: 1 | AI28: 1 | AJ28: 0 | AK28: 0 | AL28: 0 | AN28: 0 | AO28: 0 | AP28: 0 | AQ28: 0 | AR28: 0 | AS28: 0 | AT28: 0 | AU28: 0 | AV28: 0 | AW28: 0 | AX28: 0 | AY28: 0 | AZ28: 0 | BA28: 1 | BB28: 1 | BC28: 0
C29: 25 | D29: 87 | E29: 50 | F29: 37 | H29: 13 | I29: 5 | J29: 8 | K29: 9 | L29: 5 | M29: 4 | N29: 6 | O29: 4 | P29: 2 | Q29: 1 | S29: 1 | T29: 0 | U29: 39 | V29: 23 | X29: 16 | Y29: 6 | Z29: 2 | AA29: 4 | AB29: 9 | AC29: 8 | AD29: 1 | AE29: 4 | AF29: 2 | AG29: 2 | AH29: 0 | AI29: 0 | AJ29: 0 | AK29: 0 | AL29: 0 | AN29: 0 | AO29: 0 | AP29: 0 | AQ29: 0 | AR29: 0 | AS29: 0 | AT29: 0 | AU29: 0 | AV29: 0 | AW29: 0 | AX29: 0 | AY29: 0 | AZ29: 0 | BA29: 0 | BB29: 0 | BC29: 0
C30: 26 | D30: 101 | E30: 62 | F30: 39 | H30: 15 | I30: 6 | J30: 9 | K30: 8 | L30: 7 | M30: 1 | N30: 6 | O30: 2 | P30: 4 | Q30: 0 | S30: 0 | T30: 0 | U30: 49 | V30: 30 | X30: 19 | Y30: 6 | Z30: 4 | AA30: 2 | AB30: 13 | AC30: 10 | AD30: 3 | AE30: 3 | AF30: 2 | AG30: 1 | AH30: 1 | AI30: 1 | AJ30: 0 | AK30: 0 | AL30: 0 | AN30: 0 | AO30: 0 | AP30: 0 | AQ30: 0 | AR30: 0 | AS30: 0 | AT30: 0 | AU30: 0 | AV30: 0 | AW30: 0 | AX30: 0 | AY30: 0 | AZ30: 0 | BA30: 0 | BB30: 0 | BC30: 0
C31: 27 | D31: 96 | E31: 70 | F31: 26 | H31: 15 | I31: 9 | J31: 6 | K31: 9 | L31: 9 | M31: 0 | N31: 5 | O31: 3 | P31: 2 | Q31: 0 | S31: 0 | T31: 0 | U31: 43 | V31: 32 | X31: 11 | Y31: 7 | Z31: 5 | AA31: 2 | AB31: 10 | AC31: 9 | AD31: 1 | AE31: 2 | AF31: 2 | AG31: 0 | AH31: 2 | AI31: 1 | AJ31: 1 | AK31: 1 | AL31: 0 | AN31: 1 | AO31: 0 | AP31: 0 | AQ31: 0 | AR31: 1 | AS31: 0 | AT31: 1 | AU31: 0 | AV31: 0 | AW31: 0 | AX31: 0 | AY31: 0 | AZ31: 0 | BA31: 1 | BB31: 0 | BC31: 1
C32: 28 | D32: 119 | E32: 72 | F32: 47 | H32: 17 | I32: 9 | J32: 8 | K32: 13 | L32: 8 | M32: 5 | N32: 8 | O32: 2 | P32: 6 | Q32: 0 | S32: 0 | T32: 0 | U32: 52 | V32: 30 | X32: 22 | Y32: 9 | Z32: 5 | AA32: 4 | AB32: 12 | AC32: 12 | AD32: 0 | AE32: 2 | AF32: 2 | AG32: 0 | AH32: 3 | AI32: 2 | AJ32: 1 | AK32: 1 | AL32: 0 | AN32: 1 | AO32: 0 | AP32: 0 | AQ32: 0 | AR32: 1 | AS32: 1 | AT32: 0 | AU32: 0 | AV32: 0 | AW32: 0 | AX32: 0 | AY32: 0 | AZ32: 0 | BA32: 1 | BB32: 1 | BC32: 0
C33: 29 | D33: 94 | E33: 57 | F33: 37 | H33: 15 | I33: 8 | J33: 7 | K33: 7 | L33: 4 | M33: 3 | N33: 4 | O33: 1 | P33: 3 | Q33: 1 | S33: 0 | T33: 1 | U33: 51 | V33: 34 | X33: 17 | Y33: 5 | Z33: 4 | AA33: 1 | AB33: 5 | AC33: 4 | AD33: 1 | AE33: 4 | AF33: 1 | AG33: 3 | AH33: 1 | AI33: 1 | AJ33: 0 | AK33: 1 | AL33: 0 | AN33: 1 | AO33: 0 | AP33: 0 | AQ33: 0 | AR33: 0 | AS33: 0 | AT33: 0 | AU33: 0 | AV33: 0 | AW33: 0 | AX33: 0 | AY33: 0 | AZ33: 0 | BA33: 0 | BB33: 0 | BC33: 0
C34: 30 | D34: 127 | E34: 81 | F34: 46 | H34: 23 | I34: 13 | J34: 10 | K34: 12 | L34: 9 | M34: 3 | N34: 5 | O34: 3 | P34: 2 | Q34: 2 | S34: 1 | T34: 1 | U34: 54 | V34: 37 | X34: 17 | Y34: 10 | Z34: 5 | AA34: 5 | AB34: 8 | AC34: 7 | AD34: 1 | AE34: 7 | AF34: 5 | AG34: 2 | AH34: 2 | AI34: 1 | AJ34: 1 | AK34: 3 | AL34: 0 | AN34: 3 | AO34: 0 | AP34: 0 | AQ34: 0 | AR34: 0 | AS34: 0 | AT34: 0 | AU34: 0 | AV34: 0 | AW34: 0 | AX34: 1 | AY34: 0 | AZ34: 1 | BA34: 0 | BB34: 0 | BC34: 0
C35: 31 | D35: 100 | E35: 67 | F35: 33 | H35: 12 | I35: 9 | J35: 3 | K35: 10 | L35: 9 | M35: 1 | N35: 6 | O35: 2 | P35: 4 | Q35: 0 | S35: 0 | T35: 0 | U35: 39 | V35: 24 | X35: 15 | Y35: 8 | Z35: 5 | AA35: 3 | AB35: 10 | AC35: 9 | AD35: 1 | AE35: 7 | AF35: 6 | AG35: 1 | AH35: 7 | AI35: 3 | AJ35: 4 | AK35: 1 | AL35: 0 | AN35: 1 | AO35: 0 | AP35: 0 | AQ35: 0 | AR35: 0 | AS35: 0 | AT35: 0 | AU35: 0 | AV35: 0 | AW35: 0 | AX35: 0 | AY35: 0 | AZ35: 0 | BA35: 0 | BB35: 0 | BC35: 0
C36: 32 | D36: 95 | E36: 68 | F36: 27 | H36: 18 | I36: 13 | J36: 5 | K36: 18 | L36: 13 | M36: 5 | N36: 5 | O36: 3 | P36: 2 | Q36: 0 | S36: 0 | T36: 0 | U36: 32 | V36: 23 | X36: 9 | Y36: 4 | Z36: 2 | AA36: 2 | AB36: 6 | AC36: 6 | AD36: 0 | AE36: 9 | AF36: 5 | AG36: 4 | AH36: 1 | AI36: 1 | AJ36: 0 | AK36: 0 | AL36: 0 | AN36: 0 | AO36: 0 | AP36: 0 | AQ36: 0 | AR36: 0 | AS36: 0 | AT36: 0 | AU36: 0 | AV36: 0 | AW36: 0 | AX36: 1 | AY36: 1 | AZ36: 0 | BA36: 1 | BB36: 1 | BC36: 0
C37: 33 | D37: 93 | E37: 58 | F37: 35 | H37: 25 | I37: 18 | J37: 7 | K37: 9 | L37: 6 | M37: 3 | N37: 6 | O37: 2 | P37: 4 | Q37: 1 | S37: 0 | T37: 1 | U37: 32 | V37: 21 | X37: 11 | Y37: 6 | Z37: 3 | AA37: 3 | AB37: 5 | AC37: 3 | AD37: 2 | AE37: 8 | AF37: 4 | AG37: 4 | AH37: 0 | AI37: 0 | AJ37: 0 | AK37: 0 | AL37: 0 | AN37: 0 | AO37: 0 | AP37: 0 | AQ37: 0 | AR37: 1 | AS37: 1 | AT37: 0 | AU37: 0 | AV37: 0 | AW37: 0 | AX37: 0 | AY37: 0 | AZ37: 0 | BA37: 0 | BB37: 0 | BC37: 0
C38: 34 | D38: 99 | E38: 68 | F38: 31 | H38: 23 | I38: 17 | J38: 6 | K38: 12 | L38: 6 | M38: 6 | N38: 3 | O38: 2 | P38: 1 | Q38: 0 | S38: 0 | T38: 0 | U38: 36 | V38: 26 | X38: 10 | Y38: 9 | Z38: 8 | AA38: 1 | AB38: 5 | AC38: 5 | AD38: 0 | AE38: 6 | AF38: 3 | AG38: 3 | AH38: 3 | AI38: 1 | AJ38: 2 | AK38: 1 | AL38: 0 | AN38: 1 | AO38: 0 | AP38: 0 | AQ38: 0 | AR38: 0 | AS38: 0 | AT38: 0 | AU38: 0 | AV38: 0 | AW38: 0 | AX38: 0 | AY38: 0 | AZ38: 0 | BA38: 1 | BB38: 0 | BC38: 1
C39: 35 | D39: 101 | E39: 66 | F39: 35 | H39: 22 | I39: 14 | J39: 8 | K39: 11 | L39: 8 | M39: 3 | N39: 4 | O39: 2 | P39: 2 | Q39: 0 | S39: 0 | T39: 0 | U39: 32 | V39: 21 | X39: 11 | Y39: 8 | Z39: 6 | AA39: 2 | AB39: 6 | AC39: 6 | AD39: 0 | AE39: 9 | AF39: 6 | AG39: 3 | AH39: 4 | AI39: 1 | AJ39: 3 | AK39: 1 | AL39: 0 | AN39: 1 | AO39: 0 | AP39: 0 | AQ39: 0 | AR39: 1 | AS39: 0 | AT39: 1 | AU39: 1 | AV39: 1 | AW39: 0 | AX39: 2 | AY39: 1 | AZ39: 1 | BA39: 0 | BB39: 0 | BC39: 0
C40: 36 | D40: 108 | E40: 68 | F40: 40 | H40: 30 | I40: 18 | J40: 12 | K40: 22 | L40: 13 | M40: 9 | N40: 4 | O40: 3 | P40: 1 | Q40: 1 | S40: 1 | T40: 0 | U40: 27 | V40: 18 | X40: 9 | Y40: 4 | Z40: 4 | AA40: 0 | AB40: 4 | AC40: 4 | AD40: 0 | AE40: 11 | AF40: 6 | AG40: 5 | AH40: 1 | AI40: 1 | AJ40: 0 | AK40: 1 | AL40: 0 | AN40: 1 | AO40: 1 | AP40: 0 | AQ40: 1 | AR40: 0 | AS40: 0 | AT40: 0 | AU40: 0 | AV40: 0 | AW40: 0 | AX40: 1 | AY40: 0 | AZ40: 1 | BA40: 1 | BB40: 0 | BC40: 1
C41: 37 | D41: 96 | E41: 61 | F41: 35 | H41: 28 | I41: 17 | J41: 11 | K41: 14 | L41: 9 | M41: 5 | N41: 2 | O41: 2 | P41: 0 | Q41: 0 | S41: 0 | T41: 0 | U41: 21 | V41: 12 | X41: 9 | Y41: 6 | Z41: 4 | AA41: 2 | AB41: 4 | AC41: 3 | AD41: 1 | AE41: 10 | AF41: 7 | AG41: 3 | AH41: 7 | AI41: 4 | AJ41: 3 | AK41: 0 | AL41: 0 | AN41: 0 | AO41: 0 | AP41: 0 | AQ41: 0 | AR41: 1 | AS41: 1 | AT41: 0 | AU41: 0 | AV41: 0 | AW41: 0 | AX41: 1 | AY41: 1 | AZ41: 0 | BA41: 2 | BB41: 1 | BC41: 1
C42: 38 | D42: 105 | E42: 69 | F42: 36 | H42: 33 | I42: 28 | J42: 5 | K42: 8 | L42: 3 | M42: 5 | N42: 4 | O42: 0 | P42: 4 | Q42: 1 | S42: 0 | T42: 1 | U42: 27 | V42: 19 | X42: 8 | Y42: 14 | Z42: 10 | AA42: 4 | AB42: 0 | AC42: 0 | AD42: 0 | AE42: 11 | AF42: 6 | AG42: 5 | AH42: 5 | AI42: 2 | AJ42: 3 | AK42: 0 | AL42: 0 | AN42: 0 | AO42: 0 | AP42: 0 | AQ42: 0 | AR42: 0 | AS42: 0 | AT42: 0 | AU42: 0 | AV42: 0 | AW42: 0 | AX42: 1 | AY42: 1 | AZ42: 0 | BA42: 1 | BB42: 0 | BC42: 1
C43: 39 | D43: 127 | E43: 92 | F43: 35 | H43: 42 | I43: 35 | J43: 7 | K43: 21 | L43: 19 | M43: 2 | N43: 2 | O43: 2 | P43: 0 | Q43: 1 | S43: 0 | T43: 1 | U43: 27 | V43: 16 | X43: 11 | Y43: 12 | Z43: 6 | AA43: 6 | AB43: 0 | AC43: 0 | AD43: 0 | AE43: 14 | AF43: 10 | AG43: 4 | AH43: 2 | AI43: 0 | AJ43: 2 | AK43: 1 | AL43: 1 | AN43: 0 | AO43: 1 | AP43: 1 | AQ43: 0 | AR43: 2 | AS43: 0 | AT43: 2 | AU43: 0 | AV43: 0 | AW43: 0 | AX43: 0 | AY43: 0 | AZ43: 0 | BA43: 2 | BB43: 2 | BC43: 0
C44: 40 | D44: 136 | E44: 92 | F44: 44 | H44: 45 | I44: 37 | J44: 8 | K44: 16 | L44: 13 | M44: 3 | N44: 6 | O44: 2 | P44: 4 | Q44: 2 | S44: 1 | T44: 1 | U44: 30 | V44: 17 | X44: 13 | Y44: 10 | Z44: 6 | AA44: 4 | AB44: 2 | AC44: 2 | AD44: 0 | AE44: 16 | AF44: 9 | AG44: 7 | AH44: 6 | AI44: 4 | AJ44: 2 | AK44: 0 | AL44: 0 | AN44: 0 | AO44: 0 | AP44: 0 | AQ44: 0 | AR44: 0 | AS44: 0 | AT44: 0 | AU44: 0 | AV44: 0 | AW44: 0 | AX44: 0 | AY44: 0 | AZ44: 0 | BA44: 3 | BB44: 1 | BC44: 2
C45: 41 | D45: 158 | E45: 112 | F45: 46 | H45: 49 | I45: 38 | J45: 11 | K45: 18 | L45: 14 | M45: 4 | N45: 7 | O45: 4 | P45: 3 | Q45: 1 | S45: 0 | T45: 1 | U45: 45 | V45: 35 | X45: 10 | Y45: 16 | Z45: 11 | AA45: 5 | AB45: 2 | AC45: 1 | AD45: 1 | AE45: 11 | AF45: 4 | AG45: 7 | AH45: 7 | AI45: 5 | AJ45: 2 | AK45: 0 | AL45: 0 | AN45: 0 | AO45: 0 | AP45: 0 | AQ45: 0 | AR45: 0 | AS45: 0 | AT45: 0 | AU45: 0 | AV45: 0 | AW45: 0 | AX45: 1 | AY45: 0 | AZ45: 1 | BA45: 1 | BB45: 0 | BC45: 1
C46: 42 | D46: 138 | E46: 86 | F46: 52 | H46: 48 | I46: 34 | J46: 14 | K46: 16 | L46: 11 | M46: 5 | N46: 11 | O46: 5 | P46: 6 | Q46: 0 | S46: 0 | T46: 0 | U46: 24 | V46: 14 | X46: 10 | Y46: 11 | Z46: 5 | AA46: 6 | AB46: 0 | AC46: 0 | AD46: 0 | AE46: 20 | AF46: 13 | AG46: 7 | AH46: 4 | AI46: 2 | AJ46: 2 | AK46: 0 | AL46: 0 | AN46: 0 | AO46: 1 | AP46: 0 | AQ46: 1 | AR46: 0 | AS46: 0 | AT46: 0 | AU46: 0 | AV46: 0 | AW46: 0 | AX46: 0 | AY46: 0 | AZ46: 0 | BA46: 3 | BB46: 2 | BC46: 1
C47: 43 | D47: 153 | E47: 105 | F47: 48 | H47: 71 | I47: 56 | J47: 15 | K47: 15 | L47: 10 | M47: 5 | N47: 7 | O47: 2 | P47: 5 | Q47: 0 | S47: 0 | T47: 0 | U47: 22 | V47: 12 | X47: 10 | Y47: 12 | Z47: 10 | AA47: 2 | AB47: 0 | AC47: 0 | AD47: 0 | AE47: 13 | AF47: 7 | AG47: 6 | AH47: 8 | AI47: 5 | AJ47: 3 | AK47: 2 | AL47: 2 | AN47: 0 | AO47: 0 | AP47: 0 | AQ47: 0 | AR47: 2 | AS47: 1 | AT47: 1 | AU47: 0 | AV47: 0 | AW47: 0 | AX47: 1 | AY47: 0 | AZ47: 1 | BA47: 0 | BB47: 0 | BC47: 0
C48: 44 | D48: 154 | E48: 109 | F48: 45 | H48: 63 | I48: 50 | J48: 13 | K48: 18 | L48: 11 | M48: 7 | N48: 9 | O48: 5 | P48: 4 | Q48: 1 | S48: 1 | T48: 0 | U48: 24 | V48: 16 | X48: 8 | Y48: 12 | Z48: 7 | AA48: 5 | AB48: 0 | AC48: 0 | AD48: 0 | AE48: 21 | AF48: 16 | AG48: 5 | AH48: 5 | AI48: 3 | AJ48: 2 | AK48: 0 | AL48: 0 | AN48: 0 | AO48: 0 | AP48: 0 | AQ48: 0 | AR48: 0 | AS48: 0 | AT48: 0 | AU48: 1 | AV48: 0 | AW48: 1 | AX48: 0 | AY48: 0 | AZ48: 0 | BA48: 0 | BB48: 0 | BC48: 0
C49: 45 | D49: 166 | E49: 115 | F49: 51 | H49: 49 | I49: 38 | J49: 11 | K49: 22 | L49: 13 | M49: 9 | N49: 7 | O49: 2 | P49: 5 | Q49: 1 | S49: 1 | T49: 0 | U49: 35 | V49: 21 | X49: 14 | Y49: 13 | Z49: 10 | AA49: 3 | AB49: 0 | AC49: 0 | AD49: 0 | AE49: 25 | AF49: 18 | AG49: 7 | AH49: 9 | AI49: 7 | AJ49: 2 | AK49: 0 | AL49: 0 | AN49: 0 | AO49: 1 | AP49: 1 | AQ49: 0 | AR49: 2 | AS49: 2 | AT49: 0 | AU49: 1 | AV49: 1 | AW49: 0 | AX49: 0 | AY49: 0 | AZ49: 0 | BA49: 1 | BB49: 1 | BC49: 0
C50: 46 | D50: 187 | E50: 137 | F50: 50 | H50: 81 | I50: 64 | J50: 17 | K50: 21 | L50: 11 | M50: 10 | N50: 10 | O50: 4 | P50: 6 | Q50: 0 | S50: 0 | T50: 0 | U50: 39 | V50: 34 | X50: 5 | Y50: 9 | Z50: 6 | AA50: 3 | AB50: 2 | AC50: 2 | AD50: 0 | AE50: 15 | AF50: 11 | AG50: 4 | AH50: 6 | AI50: 3 | AJ50: 3 | AK50: 0 | AL50: 0 | AN50: 0 | AO50: 1 | AP50: 1 | AQ50: 0 | AR50: 1 | AS50: 0 | AT50: 1 | AU50: 1 | AV50: 1 | AW50: 0 | AX50: 0 | AY50: 0 | AZ50: 0 | BA50: 1 | BB50: 0 | BC50: 1
C51: 47 | D51: 221 | E51: 154 | F51: 67 | H51: 75 | I51: 64 | J51: 11 | K51: 28 | L51: 23 | M51: 5 | N51: 12 | O51: 5 | P51: 7 | Q51: 3 | S51: 1 | T51: 2 | U51: 30 | V51: 14 | X51: 16 | Y51: 20 | Z51: 11 | AA51: 9 | AB51: 1 | AC51: 1 | AD51: 0 | AE51: 37 | AF51: 22 | AG51: 15 | AH51: 12 | AI51: 11 | AJ51: 1 | AK51: 1 | AL51: 1 | AN51: 0 | AO51: 0 | AP51: 0 | AQ51: 0 | AR51: 1 | AS51: 1 | AT51: 0 | AU51: 0 | AV51: 0 | AW51: 0 | AX51: 0 | AY51: 0 | AZ51: 0 | BA51: 1 | BB51: 0 | BC51: 1
C52: 48 | D52: 220 | E52: 147 | F52: 73 | H52: 76 | I52: 54 | J52: 22 | K52: 26 | L52: 17 | M52: 9 | N52: 9 | O52: 2 | P52: 7 | Q52: 3 | S52: 3 | T52: 0 | U52: 34 | V52: 26 | X52: 8 | Y52: 26 | Z52: 14 | AA52: 12 | AB52: 0 | AC52: 0 | AD52: 0 | AE52: 28 | AF52: 19 | AG52: 9 | AH52: 11 | AI52: 9 | AJ52: 2 | AK52: 0 | AL52: 0 | AN52: 0 | AO52: 1 | AP52: 1 | AQ52: 0 | AR52: 2 | AS52: 2 | AT52: 0 | AU52: 2 | AV52: 0 | AW52: 2 | AX52: 0 | AY52: 0 | AZ52: 0 | BA52: 2 | BB52: 0 | BC52: 2
C53: 49 | D53: 258 | E53: 189 | F53: 69 | H53: 85 | I53: 68 | J53: 17 | K53: 40 | L53: 30 | M53: 10 | N53: 10 | O53: 6 | P53: 4 | Q53: 6 | S53: 4 | T53: 2 | U53: 29 | V53: 23 | X53: 6 | Y53: 24 | Z53: 18 | AA53: 6 | AB53: 0 | AC53: 0 | AD53: 0 | AE53: 42 | AF53: 25 | AG53: 17 | AH53: 10 | AI53: 8 | AJ53: 2 | AK53: 2 | AL53: 1 | AN53: 1 | AO53: 0 | AP53: 0 | AQ53: 0 | AR53: 4 | AS53: 3 | AT53: 1 | AU53: 1 | AV53: 0 | AW53: 1 | AX53: 1 | AY53: 1 | AZ53: 0 | BA53: 4 | BB53: 2 | BC53: 2
C54: 50 | D54: 279 | E54: 195 | F54: 84 | H54: 104 | I54: 80 | J54: 24 | K54: 29 | L54: 21 | M54: 8 | N54: 17 | O54: 10 | P54: 7 | Q54: 1 | S54: 1 | T54: 0 | U54: 36 | V54: 26 | X54: 10 | Y54: 25 | Z54: 18 | AA54: 7 | AB54: 1 | AC54: 1 | AD54: 0 | AE54: 34 | AF54: 17 | AG54: 17 | AH54: 19 | AI54: 13 | AJ54: 6 | AK54: 0 | AL54: 0 | AN54: 0 | AO54: 2 | AP54: 1 | AQ54: 1 | AR54: 2 | AS54: 0 | AT54: 2 | AU54: 2 | AV54: 1 | AW54: 1 | AX54: 1 | AY54: 1 | AZ54: 0 | BA54: 6 | BB54: 5 | BC54: 1
C55: 51 | D55: 289 | E55: 200 | F55: 89 | H55: 113 | I55: 87 | J55: 26 | K55: 32 | L55: 18 | M55: 14 | N55: 10 | O55: 4 | P55: 6 | Q55: 3 | S55: 3 | T55: 0 | U55: 36 | V55: 27 | X55: 9 | Y55: 20 | Z55: 17 | AA55: 3 | AB55: 0 | AC55: 0 | AD55: 0 | AE55: 50 | AF55: 27 | AG55: 23 | AH55: 18 | AI55: 14 | AJ55: 4 | AK55: 1 | AL55: 0 | AN55: 1 | AO55: 1 | AP55: 0 | AQ55: 1 | AR55: 4 | AS55: 3 | AT55: 1 | AU55: 1 | AV55: 0 | AW55: 1 | AX55: 0 | AY55: 0 | AZ55: 0 | BA55: 0 | BB55: 0 | BC55: 0
C56: 52 | D56: 267 | E56: 175 | F56: 92 | H56: 111 | I56: 80 | J56: 31 | K56: 26 | L56: 18 | M56: 8 | N56: 12 | O56: 6 | P56: 6 | Q56: 1 | S56: 1 | T56: 0 | U56: 30 | V56: 19 | X56: 11 | Y56: 24 | Z56: 17 | AA56: 7 | AB56: 0 | AC56: 0 | AD56: 0 | AE56: 34 | AF56: 20 | AG56: 14 | AH56: 18 | AI56: 11 | AJ56: 7 | AK56: 1 | AL56: 0 | AN56: 1 | AO56: 1 | AP56: 0 | AQ56: 1 | AR56: 3 | AS56: 3 | AT56: 0 | AU56: 0 | AV56: 0 | AW56: 0 | AX56: 1 | AY56: 0 | AZ56: 1 | BA56: 5 | BB56: 0 | BC56: 5
C57: 53 | D57: 326 | E57: 230 | F57: 96 | H57: 144 | I57: 109 | J57: 35 | K57: 43 | L57: 30 | M57: 13 | N57: 18 | O57: 11 | P57: 7 | Q57: 2 | S57: 1 | T57: 1 | U57: 18 | V57: 15 | X57: 3 | Y57: 29 | Z57: 20 | AA57: 9 | AB57: 0 | AC57: 0 | AD57: 0 | AE57: 43 | AF57: 26 | AG57: 17 | AH57: 16 | AI57: 10 | AJ57: 6 | AK57: 1 | AL57: 1 | AN57: 0 | AO57: 2 | AP57: 1 | AQ57: 1 | AR57: 6 | AS57: 4 | AT57: 2 | AU57: 0 | AV57: 0 | AW57: 0 | AX57: 2 | AY57: 1 | AZ57: 1 | BA57: 2 | BB57: 1 | BC57: 1
C58: 54 | D58: 322 | E58: 224 | F58: 98 | H58: 142 | I58: 111 | J58: 31 | K58: 30 | L58: 19 | M58: 11 | N58: 20 | O58: 11 | P58: 9 | Q58: 5 | S58: 3 | T58: 2 | U58: 19 | V58: 12 | X58: 7 | Y58: 27 | Z58: 16 | AA58: 11 | AB58: 0 | AC58: 0 | AD58: 0 | AE58: 47 | AF58: 31 | AG58: 16 | AH58: 22 | AI58: 15 | AJ58: 7 | AK58: 1 | AL58: 0 | AN58: 1 | AO58: 0 | AP58: 0 | AQ58: 0 | AR58: 7 | AS58: 6 | AT58: 1 | AU58: 0 | AV58: 0 | AW58: 0 | AX58: 0 | AY58: 0 | AZ58: 0 | BA58: 2 | BB58: 0 | BC58: 2
C59: 55 | D59: 344 | E59: 242 | F59: 102 | H59: 158 | I59: 114 | J59: 44 | K59: 39 | L59: 27 | M59: 12 | N59: 18 | O59: 9 | P59: 9 | Q59: 5 | S59: 4 | T59: 1 | U59: 16 | V59: 13 | X59: 3 | Y59: 31 | Z59: 24 | AA59: 7 | AB59: 0 | AC59: 0 | AD59: 0 | AE59: 44 | AF59: 28 | AG59: 16 | AH59: 24 | AI59: 17 | AJ59: 7 | AK59: 0 | AL59: 0 | AN59: 0 | AO59: 2 | AP59: 0 | AQ59: 2 | AR59: 3 | AS59: 3 | AT59: 0 | AU59: 1 | AV59: 1 | AW59: 0 | AX59: 2 | AY59: 1 | AZ59: 1 | BA59: 1 | BB59: 1 | BC59: 0
C60: 56 | D60: 340 | E60: 219 | F60: 121 | H60: 145 | I60: 95 | J60: 50 | K60: 45 | L60: 29 | M60: 16 | N60: 24 | O60: 14 | P60: 10 | Q60: 4 | S60: 4 | T60: 0 | U60: 21 | V60: 14 | X60: 7 | Y60: 29 | Z60: 22 | AA60: 7 | AB60: 0 | AC60: 0 | AD60: 0 | AE60: 34 | AF60: 17 | AG60: 17 | AH60: 23 | AI60: 11 | AJ60: 12 | AK60: 1 | AL60: 1 | AN60: 0 | AO60: 3 | AP60: 3 | AQ60: 0 | AR60: 6 | AS60: 5 | AT60: 1 | AU60: 0 | AV60: 0 | AW60: 0 | AX60: 3 | AY60: 2 | AZ60: 1 | BA60: 2 | BB60: 2 | BC60: 0
C61: 57 | D61: 316 | E61: 210 | F61: 106 | H61: 144 | I61: 106 | J61: 38 | K61: 37 | L61: 20 | M61: 17 | N61: 30 | O61: 19 | P61: 11 | Q61: 4 | S61: 3 | T61: 1 | U61: 14 | V61: 7 | X61: 7 | Y61: 26 | Z61: 16 | AA61: 10 | AB61: 0 | AC61: 0 | AD61: 0 | AE61: 35 | AF61: 22 | AG61: 13 | AH61: 22 | AI61: 14 | AJ61: 8 | AK61: 0 | AL61: 0 | AN61: 0 | AO61: 1 | AP61: 0 | AQ61: 1 | AR61: 3 | AS61: 3 | AT61: 0 | AU61: 0 | AV61: 0 | AW61: 0 | AX61: 0 | AY61: 0 | AZ61: 0 | BA61: 0 | BB61: 0 | BC61: 0
C62: 58 | D62: 361 | E62: 248 | F62: 113 | H62: 175 | I62: 123 | J62: 52 | K62: 42 | L62: 32 | M62: 10 | N62: 27 | O62: 17 | P62: 10 | Q62: 3 | S62: 2 | T62: 1 | U62: 12 | V62: 8 | X62: 4 | Y62: 44 | Z62: 31 | AA62: 13 | AB62: 0 | AC62: 0 | AD62: 0 | AE62: 24 | AF62: 14 | AG62: 10 | AH62: 23 | AI62: 14 | AJ62: 9 | AK62: 2 | AL62: 1 | AN62: 1 | AO62: 1 | AP62: 0 | AQ62: 1 | AR62: 5 | AS62: 3 | AT62: 2 | AU62: 0 | AV62: 0 | AW62: 0 | AX62: 3 | AY62: 3 | AZ62: 0 | BA62: 0 | BB62: 0 | BC62: 0
C63: 59 | D63: 410 | E63: 276 | F63: 134 | H63: 200 | I63: 141 | J63: 59 | K63: 52 | L63: 36 | M63: 16 | N63: 28 | O63: 20 | P63: 8 | Q63: 3 | S63: 3 | T63: 0 | U63: 15 | V63: 14 | X63: 1 | Y63: 42 | Z63: 24 | AA63: 18 | AB63: 0 | AC63: 0 | AD63: 0 | AE63: 31 | AF63: 15 | AG63: 16 | AH63: 26 | AI63: 17 | AJ63: 9 | AK63: 1 | AL63: 0 | AN63: 1 | AO63: 2 | AP63: 2 | AQ63: 0 | AR63: 8 | AS63: 4 | AT63: 4 | AU63: 1 | AV63: 0 | AW63: 1 | AX63: 1 | AY63: 0 | AZ63: 1 | BA63: 0 | BB63: 0 | BC63: 0
C64: 60 | D64: 394 | E64: 279 | F64: 115 | H64: 178 | I64: 123 | J64: 55 | K64: 46 | L64: 34 | M64: 12 | N64: 35 | O64: 24 | P64: 11 | Q64: 1 | S64: 1 | T64: 0 | U64: 15 | V64: 13 | X64: 2 | Y64: 41 | Z64: 33 | AA64: 8 | AB64: 0 | AC64: 0 | AD64: 0 | AE64: 45 | AF64: 29 | AG64: 16 | AH64: 16 | AI64: 8 | AJ64: 8 | AK64: 0 | AL64: 0 | AN64: 0 | AO64: 3 | AP64: 2 | AQ64: 1 | AR64: 5 | AS64: 4 | AT64: 1 | AU64: 0 | AV64: 0 | AW64: 0 | AX64: 5 | AY64: 5 | AZ64: 0 | BA64: 4 | BB64: 3 | BC64: 1
C65: 61 | D65: 515 | E65: 334 | F65: 181 | H65: 252 | I65: 166 | J65: 86 | K65: 60 | L65: 40 | M65: 20 | N65: 48 | O65: 27 | P65: 21 | Q65: 2 | S65: 2 | T65: 0 | U65: 20 | V65: 12 | X65: 8 | Y65: 55 | Z65: 35 | AA65: 20 | AB65: 0 | AC65: 0 | AD65: 0 | AE65: 40 | AF65: 28 | AG65: 12 | AH65: 22 | AI65: 15 | AJ65: 7 | AK65: 2 | AL65: 1 | AN65: 1 | AO65: 2 | AP65: 1 | AQ65: 1 | AR65: 7 | AS65: 4 | AT65: 3 | AU65: 0 | AV65: 0 | AW65: 0 | AX65: 3 | AY65: 1 | AZ65: 2 | BA65: 2 | BB65: 2 | BC65: 0
C66: 62 | D66: 530 | E66: 346 | F66: 184 | H66: 257 | I66: 168 | J66: 89 | K66: 55 | L66: 38 | M66: 17 | N66: 49 | O66: 26 | P66: 23 | Q66: 8 | S66: 6 | T66: 2 | U66: 13 | V66: 11 | X66: 2 | Y66: 48 | Z66: 33 | AA66: 15 | AB66: 0 | AC66: 0 | AD66: 0 | AE66: 40 | AF66: 27 | AG66: 13 | AH66: 33 | AI66: 21 | AJ66: 12 | AK66: 1 | AL66: 1 | AN66: 0 | AO66: 5 | AP66: 3 | AQ66: 2 | AR66: 12 | AS66: 7 | AT66: 5 | AU66: 0 | AV66: 0 | AW66: 0 | AX66: 7 | AY66: 3 | AZ66: 4 | BA66: 2 | BB66: 2 | BC66: 0
C67: 63 | D67: 483 | E67: 322 | F67: 161 | H67: 224 | I67: 155 | J67: 69 | K67: 46 | L67: 32 | M67: 14 | N67: 44 | O67: 22 | P67: 22 | Q67: 4 | S67: 2 | T67: 2 | U67: 17 | V67: 10 | X67: 7 | Y67: 67 | Z67: 48 | AA67: 19 | AB67: 0 | AC67: 0 | AD67: 0 | AE67: 46 | AF67: 29 | AG67: 17 | AH67: 24 | AI67: 16 | AJ67: 8 | AK67: 0 | AL67: 0 | AN67: 0 | AO67: 3 | AP67: 2 | AQ67: 1 | AR67: 5 | AS67: 4 | AT67: 1 | AU67: 0 | AV67: 0 | AW67: 0 | AX67: 3 | AY67: 2 | AZ67: 1 | BA67: 0 | BB67: 0 | BC67: 0
C68: 64 | D68: 462 | E68: 284 | F68: 178 | H68: 241 | I68: 147 | J68: 94 | K68: 50 | L68: 32 | M68: 18 | N68: 42 | O68: 26 | P68: 16 | Q68: 4 | S68: 1 | T68: 3 | U68: 9 | V68: 5 | X68: 4 | Y68: 60 | Z68: 38 | AA68: 22 | AB68: 0 | AC68: 0 | AD68: 0 | AE68: 24 | AF68: 18 | AG68: 6 | AH68: 21 | AI68: 8 | AJ68: 13 | AK68: 0 | AL68: 0 | AN68: 0 | AO68: 3 | AP68: 2 | AQ68: 1 | AR68: 3 | AS68: 3 | AT68: 0 | AU68: 1 | AV68: 1 | AW68: 0 | AX68: 4 | AY68: 3 | AZ68: 1 | BA68: 0 | BB68: 0 | BC68: 0
C69: 65 | D69: 465 | E69: 295 | F69: 170 | H69: 243 | I69: 143 | J69: 100 | K69: 43 | L69: 28 | M69: 15 | N69: 52 | O69: 35 | P69: 17 | Q69: 2 | S69: 1 | T69: 1 | U69: 10 | V69: 7 | X69: 3 | Y69: 47 | Z69: 34 | AA69: 13 | AB69: 0 | AC69: 0 | AD69: 0 | AE69: 25 | AF69: 17 | AG69: 8 | AH69: 25 | AI69: 17 | AJ69: 8 | AK69: 3 | AL69: 2 | AN69: 1 | AO69: 5 | AP69: 3 | AQ69: 2 | AR69: 5 | AS69: 4 | AT69: 1 | AU69: 1 | AV69: 1 | AW69: 0 | AX69: 3 | AY69: 2 | AZ69: 1 | BA69: 1 | BB69: 1 | BC69: 0
C70: 66 | D70: 471 | E70: 278 | F70: 193 | H70: 241 | I70: 139 | J70: 102 | K70: 43 | L70: 27 | M70: 16 | N70: 52 | O70: 23 | P70: 29 | Q70: 4 | S70: 3 | T70: 1 | U70: 11 | V70: 6 | X70: 5 | Y70: 56 | Z70: 39 | AA70: 17 | AB70: 0 | AC70: 0 | AD70: 0 | AE70: 25 | AF70: 20 | AG70: 5 | AH70: 27 | AI70: 13 | AJ70: 14 | AK70: 1 | AL70: 0 | AN70: 1 | AO70: 4 | AP70: 3 | AQ70: 1 | AR70: 2 | AS70: 2 | AT70: 0 | AU70: 0 | AV70: 0 | AW70: 0 | AX70: 3 | AY70: 2 | AZ70: 1 | BA70: 2 | BB70: 1 | BC70: 1
C71: 67 | D71: 520 | E71: 315 | F71: 205 | H71: 265 | I71: 157 | J71: 108 | K71: 54 | L71: 36 | M71: 18 | N71: 48 | O71: 26 | P71: 22 | Q71: 7 | S71: 6 | T71: 1 | U71: 6 | V71: 3 | X71: 3 | Y71: 59 | Z71: 35 | AA71: 24 | AB71: 0 | AC71: 0 | AD71: 0 | AE71: 31 | AF71: 18 | AG71: 13 | AH71: 28 | AI71: 17 | AJ71: 11 | AK71: 1 | AL71: 0 | AN71: 1 | AO71: 5 | AP71: 3 | AQ71: 2 | AR71: 7 | AS71: 7 | AT71: 0 | AU71: 0 | AV71: 0 | AW71: 0 | AX71: 7 | AY71: 5 | AZ71: 2 | BA71: 2 | BB71: 2 | BC71: 0
C72: 68 | D72: 499 | E72: 277 | F72: 222 | H72: 259 | I72: 135 | J72: 124 | K72: 47 | L72: 27 | M72: 20 | N72: 60 | O72: 42 | P72: 18 | Q72: 4 | S72: 4 | T72: 0 | U72: 5 | V72: 3 | X72: 2 | Y72: 65 | Z72: 37 | AA72: 28 | AB72: 0 | AC72: 0 | AD72: 0 | AE72: 14 | AF72: 6 | AG72: 8 | AH72: 28 | AI72: 14 | AJ72: 14 | AK72: 0 | AL72: 0 | AN72: 0 | AO72: 4 | AP72: 2 | AQ72: 2 | AR72: 7 | AS72: 4 | AT72: 3 | AU72: 0 | AV72: 0 | AW72: 0 | AX72: 5 | AY72: 3 | AZ72: 2 | BA72: 1 | BB72: 0 | BC72: 1
C73: 69 | D73: 470 | E73: 273 | F73: 197 | H73: 217 | I73: 114 | J73: 103 | K73: 59 | L73: 33 | M73: 26 | N73: 59 | O73: 40 | P73: 19 | Q73: 3 | S73: 2 | T73: 1 | U73: 6 | V73: 5 | X73: 1 | Y73: 60 | Z73: 43 | AA73: 17 | AB73: 0 | AC73: 0 | AD73: 0 | AE73: 27 | AF73: 14 | AG73: 13 | AH73: 20 | AI73: 12 | AJ73: 8 | AK73: 0 | AL73: 0 | AN73: 0 | AO73: 4 | AP73: 2 | AQ73: 2 | AR73: 6 | AS73: 3 | AT73: 3 | AU73: 0 | AV73: 0 | AW73: 0 | AX73: 9 | AY73: 5 | AZ73: 4 | BA73: 0 | BB73: 0 | BC73: 0
C74: 70 | D74: 491 | E74: 299 | F74: 192 | H74: 233 | I74: 125 | J74: 108 | K74: 47 | L74: 30 | M74: 17 | N74: 78 | O74: 48 | P74: 30 | Q74: 3 | S74: 3 | T74: 0 | U74: 8 | V74: 7 | X74: 1 | Y74: 66 | Z74: 48 | AA74: 18 | AB74: 0 | AC74: 0 | AD74: 0 | AE74: 14 | AF74: 10 | AG74: 4 | AH74: 23 | AI74: 16 | AJ74: 7 | AK74: 0 | AL74: 0 | AN74: 0 | AO74: 2 | AP74: 2 | AQ74: 0 | AR74: 6 | AS74: 4 | AT74: 2 | AU74: 1 | AV74: 0 | AW74: 1 | AX74: 10 | AY74: 6 | AZ74: 4 | BA74: 0 | BB74: 0 | BC74: 0
C75: 71 | D75: 416 | E75: 209 | F75: 207 | H75: 207 | I75: 86 | J75: 121 | K75: 32 | L75: 16 | M75: 16 | N75: 61 | O75: 37 | P75: 24 | Q75: 5 | S75: 5 | T75: 0 | U75: 7 | V75: 5 | X75: 2 | Y75: 49 | Z75: 26 | AA75: 23 | AB75: 0 | AC75: 0 | AD75: 0 | AE75: 15 | AF75: 6 | AG75: 9 | AH75: 26 | AI75: 16 | AJ75: 10 | AK75: 0 | AL75: 0 | AN75: 0 | AO75: 5 | AP75: 5 | AQ75: 0 | AR75: 4 | AS75: 4 | AT75: 0 | AU75: 1 | AV75: 1 | AW75: 0 | AX75: 4 | AY75: 2 | AZ75: 2 | BA75: 0 | BB75: 0 | BC75: 0
C76: 72 | D76: 547 | E76: 320 | F76: 227 | H76: 254 | I76: 137 | J76: 117 | K76: 59 | L76: 33 | M76: 26 | N76: 99 | O76: 67 | P76: 32 | Q76: 4 | S76: 3 | T76: 1 | U76: 3 | V76: 3 | X76: 0 | Y76: 65 | Z76: 36 | AA76: 29 | AB76: 0 | AC76: 0 | AD76: 0 | AE76: 24 | AF76: 17 | AG76: 7 | AH76: 25 | AI76: 15 | AJ76: 10 | AK76: 0 | AL76: 0 | AN76: 0 | AO76: 5 | AP76: 4 | AQ76: 1 | AR76: 5 | AS76: 4 | AT76: 1 | AU76: 0 | AV76: 0 | AW76: 0 | AX76: 4 | AY76: 1 | AZ76: 3 | BA76: 0 | BB76: 0 | BC76: 0
C77: 73 | D77: 516 | E77: 274 | F77: 242 | H77: 253 | I77: 113 | J77: 140 | K77: 67 | L77: 39 | M77: 28 | N77: 96 | O77: 56 | P77: 40 | Q77: 3 | S77: 1 | T77: 2 | U77: 3 | V77: 2 | X77: 1 | Y77: 53 | Z77: 34 | AA77: 19 | AB77: 0 | AC77: 0 | AD77: 0 | AE77: 10 | AF77: 8 | AG77: 2 | AH77: 21 | AI77: 13 | AJ77: 8 | AK77: 0 | AL77: 0 | AN77: 0 | AO77: 4 | AP77: 4 | AQ77: 0 | AR77: 3 | AS77: 3 | AT77: 0 | AU77: 0 | AV77: 0 | AW77: 0 | AX77: 1 | AY77: 1 | AZ77: 0 | BA77: 2 | BB77: 0 | BC77: 2
C78: 74 | D78: 524 | E78: 279 | F78: 245 | H78: 247 | I78: 121 | J78: 126 | K78: 67 | L78: 35 | M78: 32 | N78: 101 | O78: 63 | P78: 38 | Q78: 7 | S78: 5 | T78: 2 | U78: 0 | V78: 0 | X78: 0 | Y78: 50 | Z78: 29 | AA78: 21 | AB78: 0 | AC78: 0 | AD78: 0 | AE78: 11 | AF78: 4 | AG78: 7 | AH78: 20 | AI78: 10 | AJ78: 10 | AK78: 1 | AL78: 0 | AN78: 1 | AO78: 7 | AP78: 5 | AQ78: 2 | AR78: 4 | AS78: 1 | AT78: 3 | AU78: 0 | AV78: 0 | AW78: 0 | AX78: 9 | AY78: 6 | AZ78: 3 | BA78: 0 | BB78: 0 | BC78: 0
C79: 75 | D79: 570 | E79: 317 | F79: 253 | H79: 273 | I79: 135 | J79: 138 | K79: 73 | L79: 40 | M79: 33 | N79: 122 | O79: 79 | P79: 43 | Q79: 4 | S79: 3 | T79: 1 | U79: 3 | V79: 1 | X79: 2 | Y79: 57 | Z79: 35 | AA79: 22 | AB79: 0 | AC79: 0 | AD79: 0 | AE79: 6 | AF79: 4 | AG79: 2 | AH79: 16 | AI79: 11 | AJ79: 5 | AK79: 2 | AL79: 1 | AN79: 1 | AO79: 6 | AP79: 5 | AQ79: 1 | AR79: 0 | AS79: 0 | AT79: 0 | AU79: 0 | AV79: 0 | AW79: 0 | AX79: 8 | AY79: 3 | AZ79: 5 | BA79: 0 | BB79: 0 | BC79: 0
C80: 76 | D80: 428 | E80: 225 | F80: 203 | H80: 219 | I80: 98 | J80: 121 | K80: 50 | L80: 22 | M80: 28 | N80: 77 | O80: 53 | P80: 24 | Q80: 5 | S80: 3 | T80: 2 | U80: 0 | V80: 0 | X80: 0 | Y80: 47 | Z80: 30 | AA80: 17 | AB80: 0 | AC80: 0 | AD80: 0 | AE80: 5 | AF80: 3 | AG80: 2 | AH80: 17 | AI80: 10 | AJ80: 7 | AK80: 0 | AL80: 0 | AN80: 0 | AO80: 5 | AP80: 5 | AQ80: 0 | AR80: 0 | AS80: 0 | AT80: 0 | AU80: 0 | AV80: 0 | AW80: 0 | AX80: 3 | AY80: 1 | AZ80: 2 | BA80: 0 | BB80: 0 | BC80: 0
C81: 77 | D81: 484 | E81: 230 | F81: 254 | H81: 233 | I81: 96 | J81: 137 | K81: 52 | L81: 28 | M81: 24 | N81: 109 | O81: 55 | P81: 54 | Q81: 3 | S81: 2 | T81: 1 | U81: 3 | V81: 2 | X81: 1 | Y81: 49 | Z81: 25 | AA81: 24 | AB81: 0 | AC81: 0 | AD81: 0 | AE81: 5 | AF81: 3 | AG81: 2 | AH81: 14 | AI81: 7 | AJ81: 7 | AK81: 1 | AL81: 0 | AN81: 1 | AO81: 7 | AP81: 5 | AQ81: 2 | AR81: 1 | AS81: 1 | AT81: 0 | AU81: 1 | AV81: 1 | AW81: 0 | AX81: 6 | AY81: 5 | AZ81: 1 | BA81: 0 | BB81: 0 | BC81: 0
C82: 78 | D82: 493 | E82: 246 | F82: 247 | H82: 226 | I82: 89 | J82: 137 | K82: 47 | L82: 23 | M82: 24 | N82: 123 | O82: 76 | P82: 47 | Q82: 4 | S82: 4 | T82: 0 | U82: 2 | V82: 1 | X82: 1 | Y82: 54 | Z82: 27 | AA82: 27 | AB82: 0 | AC82: 0 | AD82: 0 | AE82: 5 | AF82: 4 | AG82: 1 | AH82: 19 | AI82: 12 | AJ82: 7 | AK82: 1 | AL82: 0 | AN82: 1 | AO82: 3 | AP82: 3 | AQ82: 0 | AR82: 1 | AS82: 0 | AT82: 1 | AU82: 1 | AV82: 1 | AW82: 0 | AX82: 6 | AY82: 6 | AZ82: 0 | BA82: 1 | BB82: 0 | BC82: 1
C83: 79 | D83: 593 | E83: 286 | F83: 307 | H83: 270 | I83: 98 | J83: 172 | K83: 71 | L83: 40 | M83: 31 | N83: 150 | O83: 94 | P83: 56 | Q83: 5 | S83: 4 | T83: 1 | U83: 1 | V83: 0 | X83: 1 | Y83: 50 | Z83: 25 | AA83: 25 | AB83: 0 | AC83: 0 | AD83: 0 | AE83: 5 | AF83: 4 | AG83: 1 | AH83: 23 | AI83: 9 | AJ83: 14 | AK83: 0 | AL83: 0 | AN83: 0 | AO83: 6 | AP83: 5 | AQ83: 1 | AR83: 2 | AS83: 0 | AT83: 2 | AU83: 2 | AV83: 1 | AW83: 1 | AX83: 8 | AY83: 6 | AZ83: 2 | BA83: 0 | BB83: 0 | BC83: 0
C84: 80 | D84: 598 | E84: 284 | F84: 314 | H84: 278 | I84: 102 | J84: 176 | K84: 65 | L84: 34 | M84: 31 | N84: 150 | O84: 84 | P84: 66 | Q84: 1 | S84: 0 | T84: 1 | U84: 2 | V84: 2 | X84: 0 | Y84: 69 | Z84: 40 | AA84: 29 | AB84: 0 | AC84: 0 | AD84: 0 | AE84: 2 | AF84: 0 | AG84: 2 | AH84: 16 | AI84: 13 | AJ84: 3 | AK84: 1 | AL84: 1 | AN84: 0 | AO84: 1 | AP84: 1 | AQ84: 0 | AR84: 2 | AS84: 0 | AT84: 2 | AU84: 1 | AV84: 0 | AW84: 1 | AX84: 8 | AY84: 6 | AZ84: 2 | BA84: 2 | BB84: 1 | BC84: 1
C85: 81 | D85: 453 | E85: 209 | F85: 244 | H85: 195 | I85: 74 | J85: 121 | K85: 48 | L85: 23 | M85: 25 | N85: 132 | O85: 73 | P85: 59 | Q85: 2 | S85: 2 | T85: 0 | U85: 2 | V85: 2 | X85: 0 | Y85: 45 | Z85: 20 | AA85: 25 | AB85: 0 | AC85: 0 | AD85: 0 | AE85: 3 | AF85: 1 | AG85: 2 | AH85: 18 | AI85: 9 | AJ85: 9 | AK85: 0 | AL85: 0 | AN85: 0 | AO85: 2 | AP85: 1 | AQ85: 1 | AR85: 0 | AS85: 0 | AT85: 0 | AU85: 0 | AV85: 0 | AW85: 0 | AX85: 6 | AY85: 4 | AZ85: 2 | BA85: 0 | BB85: 0 | BC85: 0
C86: 82 | D86: 438 | E86: 215 | F86: 223 | H86: 182 | I86: 75 | J86: 107 | K86: 45 | L86: 22 | M86: 23 | N86: 135 | O86: 81 | P86: 54 | Q86: 4 | S86: 3 | T86: 1 | U86: 0 | V86: 0 | X86: 0 | Y86: 43 | Z86: 19 | AA86: 24 | AB86: 0 | AC86: 0 | AD86: 0 | AE86: 1 | AF86: 0 | AG86: 1 | AH86: 17 | AI86: 8 | AJ86: 9 | AK86: 0 | AL86: 0 | AN86: 0 | AO86: 2 | AP86: 1 | AQ86: 1 | AR86: 1 | AS86: 1 | AT86: 0 | AU86: 1 | AV86: 0 | AW86: 1 | AX86: 7 | AY86: 5 | AZ86: 2 | BA86: 0 | BB86: 0 | BC86: 0
C87: 83 | D87: 407 | E87: 195 | F87: 212 | H87: 155 | I87: 51 | J87: 104 | K87: 49 | L87: 25 | M87: 24 | N87: 128 | O87: 81 | P87: 47 | Q87: 1 | S87: 1 | T87: 0 | U87: 0 | V87: 0 | X87: 0 | Y87: 45 | Z87: 19 | AA87: 26 | AB87: 0 | AC87: 0 | AD87: 0 | AE87: 3 | AF87: 2 | AG87: 1 | AH87: 14 | AI87: 8 | AJ87: 6 | AK87: 1 | AL87: 0 | AN87: 1 | AO87: 3 | AP87: 3 | AQ87: 0 | AR87: 0 | AS87: 0 | AT87: 0 | AU87: 0 | AV87: 0 | AW87: 0 | AX87: 8 | AY87: 5 | AZ87: 3 | BA87: 0 | BB87: 0 | BC87: 0
C88: 84 | D88: 394 | E88: 170 | F88: 224 | H88: 154 | I88: 48 | J88: 106 | K88: 29 | L88: 13 | M88: 16 | N88: 143 | O88: 76 | P88: 67 | Q88: 3 | S88: 2 | T88: 1 | U88: 1 | V88: 1 | X88: 0 | Y88: 41 | Z88: 15 | AA88: 26 | AB88: 0 | AC88: 0 | AD88: 0 | AE88: 0 | AF88: 0 | AG88: 0 | AH88: 11 | AI88: 8 | AJ88: 3 | AK88: 3 | AL88: 1 | AN88: 2 | AO88: 0 | AP88: 0 | AQ88: 0 | AR88: 0 | AS88: 0 | AT88: 0 | AU88: 0 | AV88: 0 | AW88: 0 | AX88: 9 | AY88: 6 | AZ88: 3 | BA88: 0 | BB88: 0 | BC88: 0
C89: 85 | D89: 370 | E89: 148 | F89: 222 | H89: 165 | I89: 48 | J89: 117 | K89: 33 | L89: 18 | M89: 15 | N89: 123 | O89: 57 | P89: 66 | Q89: 1 | S89: 1 | T89: 0 | U89: 0 | V89: 0 | X89: 0 | Y89: 33 | Z89: 12 | AA89: 21 | AB89: 0 | AC89: 0 | AD89: 0 | AE89: 1 | AF89: 1 | AG89: 0 | AH89: 9 | AI89: 6 | AJ89: 3 | AK89: 1 | AL89: 1 | AN89: 0 | AO89: 1 | AP89: 1 | AQ89: 0 | AR89: 0 | AS89: 0 | AT89: 0 | AU89: 0 | AV89: 0 | AW89: 0 | AX89: 3 | AY89: 3 | AZ89: 0 | BA89: 0 | BB89: 0 | BC89: 0
C90: 86 | D90: 307 | E90: 131 | F90: 176 | H90: 102 | I90: 28 | J90: 74 | K90: 28 | L90: 15 | M90: 13 | N90: 117 | O90: 56 | P90: 61 | Q90: 1 | S90: 0 | T90: 1 | U90: 0 | V90: 0 | X90: 0 | Y90: 40 | Z90: 19 | AA90: 21 | AB90: 0 | AC90: 0 | AD90: 0 | AE90: 0 | AF90: 0 | AG90: 0 | AH90: 12 | AI90: 7 | AJ90: 5 | AK90: 1 | AL90: 1 | AN90: 0 | AO90: 1 | AP90: 1 | AQ90: 0 | AR90: 1 | AS90: 0 | AT90: 1 | AU90: 0 | AV90: 0 | AW90: 0 | AX90: 4 | AY90: 4 | AZ90: 0 | BA90: 0 | BB90: 0 | BC90: 0
C91: 87 | D91: 249 | E91: 79 | F91: 170 | H91: 92 | I91: 18 | J91: 74 | K91: 25 | L91: 7 | M91: 18 | N91: 92 | O91: 40 | P91: 52 | Q91: 0 | S91: 0 | T91: 0 | U91: 2 | V91: 0 | X91: 2 | Y91: 23 | Z91: 5 | AA91: 18 | AB91: 0 | AC91: 0 | AD91: 0 | AE91: 2 | AF91: 1 | AG91: 1 | AH91: 8 | AI91: 5 | AJ91: 3 | AK91: 1 | AL91: 0 | AN91: 1 | AO91: 0 | AP91: 0 | AQ91: 0 | AR91: 0 | AS91: 0 | AT91: 0 | AU91: 0 | AV91: 0 | AW91: 0 | AX91: 4 | AY91: 3 | AZ91: 1 | BA91: 0 | BB91: 0 | BC91: 0
C92: 88 | D92: 202 | E92: 79 | F92: 123 | H92: 73 | I92: 19 | J92: 54 | K92: 14 | L92: 5 | M92: 9 | N92: 91 | O92: 45 | P92: 46 | Q92: 1 | S92: 1 | T92: 0 | U92: 0 | V92: 0 | X92: 0 | Y92: 18 | Z92: 7 | AA92: 11 | AB92: 0 | AC92: 0 | AD92: 0 | AE92: 1 | AF92: 0 | AG92: 1 | AH92: 2 | AI92: 1 | AJ92: 1 | AK92: 1 | AL92: 1 | AN92: 0 | AO92: 0 | AP92: 0 | AQ92: 0 | AR92: 0 | AS92: 0 | AT92: 0 | AU92: 0 | AV92: 0 | AW92: 0 | AX92: 1 | AY92: 0 | AZ92: 1 | BA92: 0 | BB92: 0 | BC92: 0
C93: 89 | D93: 160 | E93: 59 | F93: 101 | H93: 44 | I93: 12 | J93: 32 | K93: 18 | L93: 6 | M93: 12 | N93: 77 | O93: 33 | P93: 44 | Q93: 2 | S93: 2 | T93: 0 | U93: 0 | V93: 0 | X93: 0 | Y93: 16 | Z93: 5 | AA93: 11 | AB93: 0 | AC93: 0 | AD93: 0 | AE93: 0 | AF93: 0 | AG93: 0 | AH93: 2 | AI93: 1 | AJ93: 1 | AK93: 0 | AL93: 0 | AN93: 0 | AO93: 0 | AP93: 0 | AQ93: 0 | AR93: 0 | AS93: 0 | AT93: 0 | AU93: 0 | AV93: 0 | AW93: 0 | AX93: 1 | AY93: 0 | AZ93: 1 | BA93: 0 | BB93: 0 | BC93: 0
C94: 90 | D94: 112 | E94: 36 | F94: 76 | H94: 37 | I94: 5 | J94: 32 | K94: 5 | L94: 3 | M94: 2 | N94: 59 | O94: 25 | P94: 34 | Q94: 0 | S94: 0 | T94: 0 | U94: 0 | V94: 0 | X94: 0 | Y94: 7 | Z94: 1 | AA94: 6 | AB94: 0 | AC94: 0 | AD94: 0 | AE94: 0 | AF94: 0 | AG94: 0 | AH94: 2 | AI94: 0 | AJ94: 2 | AK94: 0 | AL94: 0 | AN94: 0 | AO94: 0 | AP94: 0 | AQ94: 0 | AR94: 0 | AS94: 0 | AT94: 0 | AU94: 0 | AV94: 0 | AW94: 0 | AX94: 2 | AY94: 2 | AZ94: 0 | BA94: 0 | BB94: 0 | BC94: 0
C95: 91 | D95: 83 | E95: 33 | F95: 50 | H95: 27 | I95: 8 | J95: 19 | K95: 10 | L95: 3 | M95: 7 | N95: 35 | O95: 16 | P95: 19 | Q95: 0 | S95: 0 | T95: 0 | U95: 0 | V95: 0 | X95: 0 | Y95: 10 | Z95: 5 | AA95: 5 | AB95: 0 | AC95: 0 | AD95: 0 | AE95: 0 | AF95: 0 | AG95: 0 | AH95: 0 | AI95: 0 | AJ95: 0 | AK95: 0 | AL95: 0 | AN95: 0 | AO95: 0 | AP95: 0 | AQ95: 0 | AR95: 0 | AS95: 0 | AT95: 0 | AU95: 0 | AV95: 0 | AW95: 0 | AX95: 1 | AY95: 1 | AZ95: 0 | BA95: 0 | BB95: 0 | BC95: 0
C96: 92 | D96: 72 | E96: 16 | F96: 56 | H96: 19 | I96: 1 | J96: 18 | K96: 6 | L96: 2 | M96: 4 | N96: 38 | O96: 9 | P96: 29 | Q96: 0 | S96: 0 | T96: 0 | U96: 0 | V96: 0 | X96: 0 | Y96: 6 | Z96: 2 | AA96: 4 | AB96: 0 | AC96: 0 | AD96: 0 | AE96: 0 | AF96: 0 | AG96: 0 | AH96: 3 | AI96: 2 | AJ96: 1 | AK96: 0 | AL96: 0 | AN96: 0 | AO96: 0 | AP96: 0 | AQ96: 0 | AR96: 0 | AS96: 0 | AT96: 0 | AU96: 0 | AV96: 0 | AW96: 0 | AX96: 0 | AY96: 0 | AZ96: 0 | BA96: 0 | BB96: 0 | BC96: 0
C97: 93 | D97: 57 | E97: 23 | F97: 34 | H97: 13 | I97: 2 | J97: 11 | K97: 7 | L97: 2 | M97: 5 | N97: 30 | O97: 16 | P97: 14 | Q97: 0 | S97: 0 | T97: 0 | U97: 0 | V97: 0 | X97: 0 | Y97: 5 | Z97: 1 | AA97: 4 | AB97: 0 | AC97: 0 | AD97: 0 | AE97: 0 | AF97: 0 | AG97: 0 | AH97: 0 | AI97: 0 | AJ97: 0 | AK97: 0 | AL97: 0 | AN97: 0 | AO97: 1 | AP97: 1 | AQ97: 0 | AR97: 0 | AS97: 0 | AT97: 0 | AU97: 0 | AV97: 0 | AW97: 0 | AX97: 1 | AY97: 1 | AZ97: 0 | BA97: 0 | BB97: 0 | BC97: 0
C98: 94 | D98: 47 | E98: 15 | F98: 32 | H98: 17 | I98: 3 | J98: 14 | K98: 1 | L98: 0 | M98: 1 | N98: 25 | O98: 11 | P98: 14 | Q98: 0 | S98: 0 | T98: 0 | U98: 0 | V98: 0 | X98: 0 | Y98: 2 | Z98: 0 | AA98: 2 | AB98: 0 | AC98: 0 | AD98: 0 | AE98: 0 | AF98: 0 | AG98: 0 | AH98: 0 | AI98: 0 | AJ98: 0 | AK98: 0 | AL98: 0 | AN98: 0 | AO98: 0 | AP98: 0 | AQ98: 0 | AR98: 0 | AS98: 0 | AT98: 0 | AU98: 0 | AV98: 0 | AW98: 0 | AX98: 2 | AY98: 1 | AZ98: 1 | BA98: 0 | BB98: 0 | BC98: 0
C99: 95 | D99: 24 | E99: 9 | F99: 15 | H99: 9 | I99: 2 | J99: 7 | K99: 1 | L99: 1 | M99: 0 | N99: 14 | O99: 6 | P99: 8 | Q99: 0 | S99: 0 | T99: 0 | U99: 0 | V99: 0 | X99: 0 | Y99: 0 | Z99: 0 | AA99: 0 | AB99: 0 | AC99: 0 | AD99: 0 | AE99: 0 | AF99: 0 | AG99: 0 | AH99: 0 | AI99: 0 | AJ99: 0 | AK99: 0 | AL99: 0 | AN99: 0 | AO99: 0 | AP99: 0 | AQ99: 0 | AR99: 0 | AS99: 0 | AT99: 0 | AU99: 0 | AV99: 0 | AW99: 0 | AX99: 0 | AY99: 0 | AZ99: 0 | BA99: 0 | BB99: 0 | BC99: 0
C100: 96 | D100: 20 | E100: 3 | F100: 17 | H100: 6 | I100: 0 | J100: 6 | K100: 0 | L100: 0 | M100: 0 | N100: 13 | O100: 3 | P100: 10 | Q100: 0 | S100: 0 | T100: 0 | U100: 0 | V100: 0 | X100: 0 | Y100: 0 | Z100: 0 | AA100: 0 | AB100: 0 | AC100: 0 | AD100: 0 | AE100: 0 | AF100: 0 | AG100: 0 | AH100: 0 | AI100: 0 | AJ100: 0 | AK100: 0 | AL100: 0 | AN100: 0 | AO100: 0 | AP100: 0 | AQ100: 0 | AR100: 0 | AS100: 0 | AT100: 0 | AU100: 0 | AV100: 0 | AW100: 0 | AX100: 1 | AY100: 0 | AZ100: 1 | BA100: 0 | BB100: 0 | BC100: 0
C101: 97 | D101: 10 | E101: 5 | F101: 5 | H101: 2 | I101: 1 | J101: 1 | K101: 0 | L101: 0 | M101: 0 | N101: 8 | O101: 4 | P101: 4 | Q101: 0 | S101: 0 | T101: 0 | U101: 0 | V101: 0 | X101: 0 | Y101: 0 | Z101: 0 | AA101: 0 | AB101: 0 | AC101: 0 | AD101: 0 | AE101: 0 | AF101: 0 | AG101: 0 | AH101: 0 | AI101: 0 | AJ101: 0 | AK101: 0 | AL101: 0 | AN101: 0 | AO101: 0 | AP101: 0 | AQ101: 0 | AR101: 0 | AS101: 0 | AT101: 0 | AU101: 0 | AV101: 0 | AW101: 0 | AX101: 0 | AY101: 0 | AZ101: 0 | BA101: 0 | BB101: 0 | BC101: 0
C102: 98 | D102: 7 | E102: 3 | F102: 4 | H102: 2 | I102: 0 | J102: 2 | K102: 1 | L102: 1 | M102: 0 | N102: 3 | O102: 1 | P102: 2 | Q102: 0 | S102: 0 | T102: 0 | U102: 0 | V102: 0 | X102: 0 | Y102: 0 | Z102: 0 | AA102: 0 | AB102: 0 | AC102: 0 | AD102: 0 | AE102: 0 | AF102: 0 | AG102: 0 | AH102: 1 | AI102: 1 | AJ102: 0 | AK102: 0 | AL102: 0 | AN102: 0 | AO102: 0 | AP102: 0 | AQ102: 0 | AR102: 0 | AS102: 0 | AT102: 0 | AU102: 0 | AV102: 0 | AW102: 0 | AX102: 0 | AY102: 0 | AZ102: 0 | BA102: 0 | BB102: 0 | BC102: 0
C103: 99 | D103: 8 | E103: 2 | F103: 6 | H103: 2 | I103: 0 | J103: 2 | K103: 1 | L103: 0 | M103: 1 | N103: 4 | O103: 1 | P103: 3 | Q103: 0 | S103: 0 | T103: 0 | U103: 0 | V103: 0 | X103: 0 | Y103: 0 | Z103: 0 | AA103: 0 | AB103: 0 | AC103: 0 | AD103: 0 | AE103: 0 | AF103: 0 | AG103: 0 | AH103: 0 | AI103: 0 | AJ103: 0 | AK103: 0 | AL103: 0 | AN103: 0 | AO103: 0 | AP103: 0 | AQ103: 0 | AR103: 0 | AS103: 0 | AT103: 0 | AU103: 0 | AV103: 0 | AW103: 0 | AX103: 1 | AY103: 1 | AZ103: 0 | BA103: 0 | BB103: 0 | BC103: 0
C104: 100 | D104: 2 | E104: 1 | F104: 1 | H104: 0 | I104: 0 | J104: 0 | K104: 0 | L104: 0 | M104: 0 | N104: 1 | O104: 0 | P104: 1 | Q104: 0 | S104: 0 | T104: 0 | U104: 0 | V104: 0 | X104: 0 | Y104: 0 | Z104: 0 | AA104: 0 | AB104: 0 | AC104: 0 | AD104: 0 | AE104: 0 | AF104: 0 | AG104: 0 | AH104: 0 | AI104: 0 | AJ104: 0 | AK104: 0 | AL104: 0 | AN104: 0 | AO104: 0 | AP104: 0 | AQ104: 0 | AR104: 0 | AS104: 0 | AT104: 0 | AU104: 0 | AV104: 0 | AW104: 0 | AX104: 1 | AY104: 1 | AZ104: 0 | BA104: 0 | BB104: 0 | BC104: 0
C105: 101 | D105: 4 | E105: 1 | F105: 3 | H105: 2 | I105: 1 | J105: 1 | K105: 0 | L105: 0 | M105: 0 | N105: 2 | O105: 0 | P105: 2 | Q105: 0 | S105: 0 | T105: 0 | U105: 0 | V105: 0 | X105: 0 | Y105: 0 | Z105: 0 | AA105: 0 | AB105: 0 | AC105: 0 | AD105: 0 | AE105: 0 | AF105: 0 | AG105: 0 | AH105: 0 | AI105: 0 | AJ105: 0 | AK105: 0 | AL105: 0 | AN105: 0 | AO105: 0 | AP105: 0 | AQ105: 0 | AR105: 0 | AS105: 0 | AT105: 0 | AU105: 0 | AV105: 0 | AW105: 0 | AX105: 0 | AY105: 0 | AZ105: 0 | BA105: 0 | BB105: 0 | BC105: 0
C106: 103 | D106: 2 | E106: 0 | F106: 2 | H106: 0 | I106: 0 | J106: 0 | K106: 0 | L106: 0 | M106: 0 | N106: 2 | O106: 0 | P106: 2 | Q106: 0 | S106: 0 | T106: 0 | U106: 0 | V106: 0 | X106: 0 | Y106: 0 | Z106: 0 | AA106: 0 | AB106: 0 | AC106: 0 | AD106: 0 | AE106: 0 | AF106: 0 | AG106: 0 | AH106: 0 | AI106: 0 | AJ106: 0 | AK106: 0 | AL106: 0 | AN106: 0 | AO106: 0 | AP106: 0 | AQ106: 0 | AR106: 0 | AS106: 0 | AT106: 0 | AU106: 0 | AV106: 0 | AW106: 0 | AX106: 0 | AY106: 0 | AZ106: 0 | BA106: 0 | BB106: 0 | BC106: 0
C107: 111 | D107: 1 | E107: 1 | F107: 0 | H107: 0 | I107: 0 | J107: 0 | K107: 0 | L107: 0 | M107: 0 | N107: 1 | O107: 1 | P107: 0 | Q107: 0 | S107: 0 | T107: 0 | U107: 0 | V107: 0 | X107: 0 | Y107: 0 | Z107: 0 | AA107: 0 | AB107: 0 | AC107: 0 | AD107: 0 | AE107: 0 | AF107: 0 | AG107: 0 | AH107: 0 | AI107: 0 | AJ107: 0 | AK107: 0 | AL107: 0 | AN107: 0 | AO107: 0 | AP107: 0 | AQ107: 0 | AR107: 0 | AS107: 0 | AT107: 0 | AU107: 0 | AV107: 0 | AW107: 0 | AX107: 0 | AY107: 0 | AZ107: 0 | BA107: 0 | BB107: 0 | BC107: 0
